{"text_format":"2","workbook":"xlsx","n_sheets":5,"sheets":["ORÇAMENTO","COMPOSIÇÕES","Composição do BDI","Cronograma","Quantificação"],"not_rendered":{"charts":0,"images":2,"macros":0,"external_links":0,"defined_names":1,"comments":0,"pivot_tables":0},"unopened":[],"bounds":{"document_bytes":16777216,"sheet_cells":100000,"run_cost":"one","rows_first":2000,"rows_last":500,"rows_between":2000,"halvings":0,"cell_chars":16384,"cell_head_chars":4096},"cells_cut":0,"cells_raw":0,"read":"whole","date_system":"1900"}

{"sheet":"ORÇAMENTO","index":0,"n_rows":89,"n_cols":9,"rows_kept":89,"cut":false,"hidden":false,"merged":[[88,5,88,7],[3,2,3,5],[0,5,0,8],[1,5,1,8],[3,7,3,8],[51,0,51,8],[61,0,61,8],[0,2,1,2]]}
[{"$nulls":5},"Data Base SINAPI/BA: Agosto 2014  "]
[{"$nulls":5},"Data Base SICRO/BA: Maio 2014"]
[]
[null,"SERVIÇO: ","EXECUÇÃO DAS OBRAS E SERVIÇOS RELATIVOS À RECUPERAÇÃO E ENRIQUECIMENTO DE ÁREAS DEGRADADAS DA ETAPA 1 DO PROJETO DE IRRIGAÇÃO SALITRE, EM JUAZEIRO, ESTADO DA BAHIA.",{"$nulls":4},"MUNICÍPIO: Juazeiro - BA"]
[null,"LOCAL: ","6ª Superintendência Regional",{"$nulls":4},"BDI - Serviços",{"$f":"ROUND('Composição do BDI'!D30,4)","v":0.26440000000000002}]
[null,"DATA: ","Outubro de 2014",{"$nulls":4},"BDI - Materiais",{"$f":"ROUND('Composição do BDI'!D63,4)","v":0.16800000000000001}]
["IT","Código ","Base","Descrição","Und","Quantidade","Preço Unit. Base","Preço Unitário","Preço Total"]
[1,{"$f":"COMPOSIÇÕES!A80","v":"CP003"},"Comp.","Administração Local","un ",1,{"$f":"COMPOSIÇÕES!H89","v":146790},{"$f":"ROUND(G8*(1+$I$5),2)","v":185601.28},{"$f":"ROUND(H8*F8,2)","v":185601.28}]
[2,{"$f":"COMPOSIÇÕES!A13","v":"CP001"},"Comp.","Mobilização  de pessoal e equipamentos","un ",1,{"$f":"COMPOSIÇÕES!H19","v":6143},{"$f":"ROUND(G9*(1+$I$5),2)","v":7767.21},{"$f":"ROUND(H9*F9,2)","v":7767.21}]
[3,{"$f":"COMPOSIÇÕES!A47","v":"CP002"},"Comp.","Desmobilização  de pessoal e equipamentos","un ",1,{"$f":"COMPOSIÇÕES!H53","v":6143},7767.21,7767.21]
[4,"73805/001","Sinapi","Instalação do Canteiro de Obras","m²",30,281.85000000000002,356.37,10691.1]
[5,"CP025","Sinapi","Condução e monitoramento do processo de recuperação das áreas degradadas","mês",8,{"$f":"COMPOSIÇÕES!H896","v":1835.93},2321.35,18570.8]
[6,"Tabela Consultiva - JAN/2014","Codevasf","Fornecimento de veículo 4x4, com ar condicionado para apoio à fiscalização, incl. combustível, óleo, manutenção, licenciamento e seguros","mês",6,4934.04,6238.6,37431.599999999999]
[7,"74209/001 ","Sinapi","PLACAS DE OBRA EM CHAPA DE ACO GALVANIZADO ","m²",{"$f":"ROUND((2*4.608),2)","v":9.2200000000000006},345.72,437.13,4030.34]
[8,"4 S 06 200 01","SICRO 2","Placas de identificação de espécies e educação ambiental (Forn. e implantação placa sinaliz. semi-refletiva)","m²",{"$f":"ROUND(0.576*131+0.04*200,2)","v":83.46},198.13,250.52,20908.400000000001]
[9,73672,"Sinapi"," DESMATAMENTO E LIMPEZA MECANIZADA DE TERRENO COM ALGAROBEIRAS ATE Ø 15CM","m²",334000,0.36,0.46,153640]
[10,"5 S 01 010 00","SICRO 2","Destocamento de algarobeiras c/ diâm. 0,15 a 030m","un ",1050,26.24,33.18,34839]
[11,{"$f":"COMPOSIÇÕES!A110","v":"CP004"},"Comp.","Construção de Paliçadas com resíduos de algarobeiras para prevenção e controle de processos erosivos em drenagens","m²",180,{"$f":"COMPOSIÇÕES!H116","v":7.88},9.9600000000000009,1792.8]
[12,73698,"Sinapi","Construção de dissipadores hidráulicos  para prevenção e controle de processos erosivos (ENROCAMENTO DE PEDRA ARRUMADA)","m³",108,162.19,205.07,22147.56]
[13,{"$f":"COMPOSIÇÕES!A144","v":"CP005"},"Comp.","Fornecimento e construção de cerca  com onze fios de arame farpado e mourões de concreto seção quadrada a cada 7,5 m","m",64600,{"$f":"COMPOSIÇÕES!H156","v":17.989999999999998},22.75,1469650]
[14,"74155/002","Sinapi","DESCOMPACTAÇÃO DE SOLOS (ESCAVACAO E TRANSPORTE DE MATERIAL DE 2A CAT DMT 50M COM TRATOR SOBRE ESTEIRAS 305 HP COM LAMINA E ESCARIFICADOR)","m³",{"$f":"ROUND(30.8*10000*0.3,2)","v":92400},2.67,3.38,312312]
[15,{"$f":"COMPOSIÇÕES!A176","v":"CP006"},"Comp.","Gradeamento de Solos descompactados","m²",{"$f":"ROUND(30.8*10000,2)","v":308000},{"$f":"COMPOSIÇÕES!H180","v":0.17},0.21,64680]
[16,72915,"Sinapi","Abertura de trincheira em material de 2a categoria (ESCAVACAO MECANICA DE VALA EM MATERIAL DE 2A. CATEGORIA ATE 2 M DE PROFUNDIDADE COM UTILIZACAO DE ESCAVADEIRA HIDRAULICA)","m³",{"$f":"ROUND(166.666666666667,2)","v":166.67},10.220000000000001,12.92,2153.38]
[17,"2 S 01 100 06","Sicro 2","Reposição de Topsoil (escavação, carga, transporte mat 1a cat com DMT até 1000 m.)","m³",{"$f":"ROUND(500+3680,2)","v":4180},9.5399999999999991,12.06,50410.8]
[18,"2 S 09 001 05","Sicro 2","Transporte local em rodovia não pavimentada","m³xkm",{"$f":"ROUND(F24*9,2)","v":37620},0.65,0.82,30848.400000000001]
[19,{"$f":"COMPOSIÇÕES!A210","v":"CP007"},"Comp.","Plantio de espécies nativas arbustivas, herbáceas e rasteiras (de acordo com as especificações de projeto)","ha ",{"$f":"ROUND(Quantificação!L26,2)","v":78.97},{"$f":"COMPOSIÇÕES!H223","v":9675.23},12233.36,966068.44]
[20,"1 A 00 201 70","Sicro 2","Transporte de água e Irrigação de mudas nativas arbustivas, herbáceas e rasteiras com carro pipa durante 8 meses, 1 vez a cada 14 dias","txkm",{"$f":"ROUND(Quantificação!M26,2)","v":33810.44},0.93,1.18,39896.32]
[21,"73859/002","Sinapi","Manutenção de mudas de especies nativas arbóreas ou arbustivas, de acordo com especificações de projeto (CAPINA E LIMPEZA MANUAL DE TERRENO)","m²",{"$f":"ROUND(0.2*Quantificação!N26*(416.7+416.7+833.3)*1^2*PI()/4,2)","v":20674.71},0.9,1.1399999999999999,23569.17]
[22,{"$f":"COMPOSIÇÕES!A244","v":"CP008"},"Comp.","Recomposição do Banco de Sementes nativas do solo nas áreas a serem recuperadas ou enriquecidas","ha ",100,{"$f":"COMPOSIÇÕES!H248","v":62.52},79.05,7905]
[23,85190,"Sinapi","Fornecimento e instalação de portão em aço galvanizado (PORTAO PARA VEICULOS EM BARRAS DE FERRO RETANGULAR CHATA E TELA DE ARAME GALVANIZADO, FIO 8 BWG, MALHA QUADRADA 5X5CM, INCLUSIVE CADEADO E PINTURA PVA EM PILARES DE APOIO DE CONCRETO)","un ",12,2444.31,3090.59,37087.08]
[24,73610,"Sinapi"," LOCAÇÃO DE ALINHAMENTOS, UTILIZANDO EQUIPE DE TOPOGRAFIA COM PESSOAL E EQUIPAMENTOS ","m",{"$f":"ROUND(F20*1.1,2)","v":71060},0.62,0.78,55426.8]
[25,73698,"Sinapi","Enrocamento saída DPP1 Margem do rio São Francisco (ENROCAMENTO MANUAL, COM ARRUMACAO DO MATERIAL )","m³",45,162.19,205.07,9228.15]
[26,72944,"Sinapi","PAVIMENTACAO EM PARALELEPIPEDO SOBRE COLCHAO DE AREIA 10CM, REJUNTADO COM AREIA","m²",200,33.11,41.86,8372]
[27,"74034/001 ","Sinapi","Espalhamento de Bota-fora 1a Cat. Depositado na margem direita do trecho final do dreno principal (ESPALHAMENTO DE MATERIAL DE 1A CATEGORIA COM TRATOR DE ESTEIRA COM 153 HP)","m³",6300,2.17,2.74,17262]
[28,83336,"Sinapi","ESCAVACAO MECANICA PARA ACERTO DE TALUDES, EM MATERIAL DE 1A CATEGORIA, COM ESCAVADEIRA HIDRAULICA (Em trecho de 300 m do trecho final do dreno principal)","m³",792,4.16,5.26,4165.92]
[29,{"$f":"COMPOSIÇÕES!A277","v":"CP009"},"Comp.","Fornecimento e plantio de vetiver em mudas","un ",{"$f":"ROUND(300*15*10,2)","v":45000},{"$f":"COMPOSIÇÕES!H284","v":0.96},1.21,54450]
[30,"73962/013","Sinapi","ESCAVACAO DE VALA EM MATERIAL 1A CATEGORIA , PROFUNDIDADE ATE 1,5 M para construção de canaletas de proteção de taludes","m³",80,3.79,4.79,383.2]
[31,5622,"Sinapi","REGULARIZACAO E COMPACTACAO MANUAL DE TERRENO COM SOQUETE para construção de canaletas de proteção de taludes","m²",597,3.71,4.6900000000000004,2799.93]
[32,{"$f":"COMPOSIÇÕES!A591","v":"CP 016"},"SINAPI E COTAÇÃO","CONCRETO FCK=15MPA (1:2,5:3) , INCLUIDO PREPARO MECANICO, LANCAMENTO E ADENSAMENTO para construção de canaletas de proteção de taludes","m³",44,{"$f":"COMPOSIÇÕES!H604","v":471.66},596.37,26240.28]
[33,{"$f":"COMPOSIÇÕES!A341","v":"CP 011"},"SICRO 2 E COMP.","DESCIDA D'ÁGUA CORTES EM DEGRAUS ARM-DCD 02 AC/BC","m",21,{"$f":"COMPOSIÇÕES!H352","v":145.49},183.96,3863.16]
[34,{"$f":"COMPOSIÇÕES!A433","v":"CP 013"},"SICRO 2 E COMP.","DISSIPADOR DE ENERGIA - DEB 01","un ",6,{"$f":"COMPOSIÇÕES!H444","v":220.60000000000002},278.93,1673.58]
[35,"74154/001","Sinapi","ESCAVACAO, CARGA E TRANSPORTE DE MATERIAL DE 1A CATEGORIA COM TRATOR SOBRE ESTEIRAS 305 HP E CACAMBA 5M3, DMT 50 A 200M","m³",345,4.63,5.85,2018.25]
[36,5719,"Sinapi","REATERRO APILOADO EM CAMADAS 0,20M, UTILIZANDO MATERIAL ARGILO-ARENOSO ADQUIRIDO EM JAZIDA, JÁ CONSIDERANDO UM ACRÉSCIMO DE 25% NO VOLUME DO MATERIAL ADQUIRIDO, NÃO CONSIDERANDO O TRANSPORTE ATÉ O REATERRO","m³",345,42.52,53.76,18547.2]
[37,"2 S 09 001 05","Sicro 2","Transporte local em rodovia não pavimentada","m³xkm",13800,0.65,0.82,11316]
[38,73698,"Sinapi","ENROCAMENTO MANUAL, COM ARRUMACAO DO MATERIAL","m³",42,162.19,205.07,8612.94]
[39,72919,"Sinapi","REGULARIZACAO E COMPACTACAO MANUAL DE TALUDE COM SOLO-CIMENTO 6%","m²",{"$f":"ROUND(8.4/0.05,2)","v":168},48.06,60.77,10209.36]
[40,"CP 015","Sicro 2","FORNECIMENTO E APLICAÇÃO DE CONCRETO FCK = 20 MPA NOS TALUDES DO DRENO","m³",16.8,{"$f":"COMPOSIÇÕES!H559","v":355.95558159999996},450.07,7561.18]
[41,79480,"Sinapi","ESCAVACAO MECANICA CAMPO ABERTO EM SOLO EXCETO ROCHA ATE 2,00M PROFUNDIDADE PARA CONSTRUÇÃO DE MICROBACIAS DE RETENÇÃO EM ESTRADAS DIVERSAS","m³",{"$f":"ROUND(85*50,2)","v":4250},2.25,2.84,12070]
[42,"74034/001 ","Sinapi","ESPALHAMENTO E COMPACTAÇÃO DE MATERIAL DE 1A CATEGORIA COM TRATOR DE ESTEIRA COM 153 HP PARA CONSTRUÇÃO DE MICROBACIAS DE RETENÇÃO EM ESTRADAS DIVERSAS","m³",{"$f":"ROUND(85*50,2)","v":4250},2.17,2.74,11645]
[43,72213,"Sinapi","LIMPEZA MANUAL GERAL COM REMOCAO DE COBERTURA VEGETAL PARA IMPLANTAÇÃO DE TRILHAS ECOLÓGICAS","m²",{"$f":"ROUND(0.5*Quantificação!AD26,2)","v":6000},2.81,3.55,21300]
[44,"73859/001 ","Sinapi","LIMPEZA MECANIZADA DE TERRENO COM REMOCAO DE CAMADA VEGETAL, UTILIZANDO TRATOR DE ESTEIRAS PARA LIMPEZA DO ACEIRO DA RESERVA LEGAL","m²",103650,0.15,0.19,19693.5]
["Drenagem Pluvial da Parte Frontal da Administração da Etapa 1 do Projeto Salitre"]
[45,3061,"Sinapi","ESCAVACAO MEC VALA N ESCOR MAT 1A CAT C/RETROESCAV ATE 1,50M EXCL ESGOTAMENTO","m³",4,5.66,{"$f":"ROUND(G53*(1+$I$5),2)","v":7.16},{"$f":"ROUND(H53*F53,2)","v":28.64}]
[46,72836,"Sinapi","ESCAVACAO, CARGA E TRANSPORTE DE MATERIAL DE 1A CATEGORIA, CAMINHO DE SERVICO PAVIMENTADO, COM ESCAVADEIRA HIDRAULICA E CAMINHAO BASCULANTE 6 M3, DMT 800 ATE 1.000 M","m³",1800,3.98,{"$f":"ROUND(G54*(1+$I$5),2)","v":5.03},{"$f":"ROUND(H54*F54,2)","v":9054}]
[47,"74005/001","Sinapi","COMPACTACAO MECANICA, SEM CONTROLE DO GC (C/COMPACTADOR PLACA 400 KG)","m³",1800,3.17,4.01,7218]
[48,7793,"Sinapi","TUBO CONCRETO SIMPLES CLASSE - PS2 PB NBR-8890 DN 600MM P/AGUAS PLUVIAIS","m",800,57.25,72.39,57912]
[49,73722,"Sinapi","ASSENTAMENTO DE TUBOS DE CONCRETO DIAMETRO = 600MM, SIMPLES OU ARMADO, JUNTA EM ARGAMASSA 1:3 CIMENTO:AREIA","m",800,34.89,44.11,35288]
[50,72840,"Sinapi","TRANSPORTE COMERCIAL COM CAMINHAO CARROCERIA 9 T, RODOVIA PAVIMENTADA","txkm",{"$f":"ROUND(0.33*30*800,2)","v":7920},0.45,0.56999999999999995,4514.3999999999996]
[51,1523,"Sinapi","FORNECIMENTO E ASSENTAMENTO DE LASTRO DE CONCRETO USINADO CONVENCIONAL COM BRITA 1 E 2, SLUMP = 80 MM +/- 10 MM, FCK = 15 MPA (NÃO BOMBEAVEL)","m³",1,259.77999999999997,328.47,328.47]
[52,"CP 017","SINAPI E COTAÇÃO","CONCRETO ARMADO DOSADO 15 MPA INCL MAT P/ 1 M3 PREPARO CONF COMP 5845 COLOC CONF COMP 7090 14 M2 DE AREA MOLDADA FORMAS E ESCORAMENTO CONF COMPS 5306 E 5708 60 KG DE ACO CA-50 INC MAO DE OBRA P/CORTE DOBRAGEM MONTAGEM E COLO","m³",0.9,{"$f":"COMPOSIÇÕES!H643","v":1522.3400000000004},1924.85,1732.37]
[53,"73998/004","Sinapi","ALVENARIA DE BLOCOS DE CONCRETO ESTRUTURAL 14X19X39CM, ESPESSURA 14CM, ASSENTADOS COM ARGAMASSA TRACO 1:0,25:4 (CIMENTO, CAL E AREIA)","m²",40,56.45,71.38,2855.2]
["Galpão de Transbordo de Embalagens de Agrotóxicos"]
[54,72822,"SINAPI","ESCAVACAO, CARGA E TRANSPORTE DE MATERIAL DE 1A CATEGORIA, CAMINHO DE SERVICO LEITO NATURAL, COM ESCAVADEIRA HIDRAULICA E CAMINHAO BASCULANT E 6 M3, DMT ATE 600 M","M³",150,4.3499999999999996,{"$f":"ROUND(G63*(1+$I$5),2)","v":5.5},{"$f":"ROUND(H63*F63,2)","v":825}]
[55,"74153/001","SINAPI","ESPALHAMENTO MECANIZADO  MATERIAL 1A. CATEGORIA","M2",225,0.22,{"$f":"ROUND(G64*(1+$I$5),2)","v":0.28000000000000003},{"$f":"ROUND(H64*F64,2)","v":63}]
[56,79490,"SINAPI","COMPACTACAO MECANICA ","M³",150,1.49,1.88,282]
[57,"73965/010","SINAPI","ESCAVACAO MANUAL DE VALA EM MATERIAL DE 1A CATEGORIA ATE 1,5M","M³",10,39.39,49.8,498]
[58,"73844/001","SINAPI","ALVENARIA DE PEDRA ARGAMASSA","M³",7.7,395.97,500.66,3855.08]
[59,"CP 017","SINAPI","CONCRETO ARMADO DOSADO 15 MPA INCL MAT P/ 1 M3 PREPARO CONF COMP 5845 COLOC CONF COMP 7090 14 M2 DE AREA MOLDADA FORMAS E ESCORAMENTO CONF COMPS 5306 E 60 KG DE ACO CA-50 INC MAO DE OBRA P/CORTE DOBRAGEM MONTAGEM E COLO ","M³",5,{"$f":"COMPOSIÇÕES!H643","v":1522.3400000000004},1924.85,9624.25]
[60,87519,"SINAPI","ALVENARIA DE VEDAÇÃO DE BLOCOS CERÂMICOS FURADOS NA HORIZONTAL DE 9X19 X19CM (ESPESSURA 9CM) DE PAREDES COM ÁREA LÍQUIDA MAIOR OU IGUAL A 6M² COM VÃOS E ARGAMASSA DE ASSENTAMENTO COM PREPARO EM BETONEIRA. AF_06/2014_P","M2",245,53,67.010000000000005,16417.45]
[61,87893,"SINAPI","CHAPISCO APLICADO TANTO EM PILARES E VIGAS DE CONCRETO COMO EM ALVENARIA DE FACHADA SEM PRESENÇA DE VÃOS, COM COLHER DE PEDREIRO. ARGAMASSA TRAÇO 1:3 COM PREPARO MANUAL. AF_06/2014","M2",480,4.32,5.46,2620.8000000000002]
[62,87448,"SINAPI","ALVENARIA DE VEDAÇÃO DE BLOCOS VAZADOS DE CONCRETO DE 9X19X39CM (ESPES  9CM) DE PAREDES COM ÁREA LÍQUIDA MENOR QUE 6M² SEM VÃOS E ARGAMASSA DE ASSENTAMENTO COM PREPARO MANUAL. AF_06/2014_P\n","M2",9.1,38.479999999999997,48.65,442.72]
[63,"CP 020","SINAPI","CONTRAPISO/LASTRO DE CONCRETO NAO-ESTRUTURAL, E=5CM, PREPARO COM BETONEIRA","M2",130,{"$f":"COMPOSIÇÕES!H720","v":26.2},33.130000000000003,4306.8999999999996]
[64,87807,"SINAPI","EMBOÇO OU MASSA ÚNICA EM ARGAMASSA TRAÇO 1:2:8, PREPARO MANUAL, APLICADA MANUALMENTE EM PANOS CEGOS DE FACHADA (SEM PRESENÇA DE VÃOS), ESPESSURA MAIOR OU IGUAL A 50 MM. AF_06/2014","M2",480,44.1,55.76,26764.799999999999]
[65,73465,"SINAPI","PISO CIMENTADO E=1,5CM C/ARGAMASSA 1:3 CIMENTO AREIA ALISADO COLHER SOBRE BASE EXISTENTE","M2",50,26.57,33.6,1680]
[66,72111,"SINAPI","ESTRUTURA METALICA EM TESOURAS OU TRELICAS, VAO LIVRE DE 15M, FORNECIMENTO E MONTAGEM, NAO SENDO CONSIDERADOS OS FECHAMENTOS METALICOS E A PINTURA DE ACABAMENTO ","M2",109,63.37,80.13,8734.17]
[67,84037,"SINAPI","COBERTURA COM TELHA DE FIBROCIMENTO ONDULADA, ESPESSURA 6 MM, COM CUMEEIRA UNIVERSAL, INCLUSAS JUNTAS DE DILATACAO E ACESSORIOS DE FIXACAO","M2",109,41.64,52.65,5738.85]
[68,88417,"SINAPI","PINTURA COM TINTA TEXTURIZADA ACRÍLICA EM PANOS CEGOS DE FACHADA (SEM PRESENÇA DE VÃOS) DE EDIFÍCIOS DE MÚLTIPLOS PAVIMENTOS, UMA COR. AF_06/2014","M2",367,15.75,19.91,7306.97]
[69,68054,"SINAPI","PORTAO DE FERRO EM CHAPA GALVANIZADA PLANA 14 GSG","M2",18.100000000000001,155.37,196.45,3555.75]
[70,"74145/001","SINAPI","PINTURA ESMALTE FOSCO, DUAS DEMAOS, SOBRE SUPERFICIE METALICA, INCLUSO UMA DEMAO DE FUNDO ANTICORROSIVO. UTILIZACAO DE REVOLVER ( AR-COMPRIMIDO).","M2",36.200000000000003,13.89,17.559999999999999,635.66999999999996]
[71,87251,"SINAPI","REVESTIMENTO CERÂMICO PARA PISO COM PLACAS TIPO GRÊS DE DIMENSÕES 45X45","M2",94,29.9,37.81,3554.14]
[72,"75051/003","SINAPI","TUBO DE PVC SOLDAVEL, SEM CONEXOES 32MM - FORNECIMENTO E INSTALACAO","M",300,9.16,11.58,3474]
[73,3061,"SINAPI","ESCAVACAO MEC VALA N ESCOR MAT 1A CAT C/RETROESCAV ATE 1,50M EXCL ESGOTAMENTO\n","M³",50,5.66,7.16,358]
[74,"73964/003","SINAPI","REATERRO VALA/CAVA MEC CV EXCL COMPACTACAO","M³",50,1.75,2.21,110.5]
[75,{"$f":"COMPOSIÇÕES!A742","v":"CP 021"},"SINAPI",{"$f":"COMPOSIÇÕES!B742","v":"Instalação Hidráulica (Esgoto) - Galpão de Transbordo de Embalagens de Agrotóxicos"},"UN ",1,{"$f":"COMPOSIÇÕES!H755","v":340.04},429.95,429.95]
[76,{"$f":"COMPOSIÇÕES!A771","v":"CP 022"},"SINAPI",{"$f":"COMPOSIÇÕES!B771","v":"Instalação Hidráulica (Água) - Galpão de Transbordo de Embalagens de Agrotóxicos "},"UN ",1,{"$f":"COMPOSIÇÕES!H785","v":508.5},642.95000000000005,642.95000000000005]
[77,{"$f":"COMPOSIÇÕES!A798","v":"CP 023"},"SINAPI/ ORSE",{"$f":"COMPOSIÇÕES!B798","v":"Instalação Elétrica - Galpão de Transbordo de Embalagens de Agrotóxicos"},"UN ",1,{"$f":"COMPOSIÇÕES!H830","v":1997.88},2526.12,2526.12]
[78,{"$f":"COMPOSIÇÕES!A853","v":"CP 024"},"SINAPI",{"$f":"COMPOSIÇÕES!B853","v":"Ramal Elétrico Aéreo - Galpão de Transbordo de Embalagens de Agrotóxicos"},"UN ",1,{"$f":"COMPOSIÇÕES!H879","v":8303.16},10498.52,10498.52]
[]
[{"$nulls":5},"Preço Global",null,null,{"$f":"SUM(I8:I87)","v":4050483.0100000007}]

{"sheet":"COMPOSIÇÕES","index":1,"n_rows":907,"n_cols":8,"rows_kept":907,"cut":false,"hidden":false,"merged":[[400,4,400,6],[388,0,388,6],[370,2,371,3],[373,3,373,4],[373,5,373,6],[373,7,374,7],[383,1,383,4],[477,0,477,5],[472,7,473,7],[474,1,474,4],[464,3,464,4],[464,5,464,6],[464,7,465,7],[461,4,462,5],[475,1,475,4],[476,0,476,6],[487,1,488,1],[487,2,488,2],[487,3,488,3],[487,4,488,6],[478,0,478,6],[461,6,462,6],[491,4,491,6],[490,4,490,6],[422,2,423,2],[463,0,463,7],[464,0,465,0],[464,1,465,1],[464,2,465,2],[487,7,488,7],[486,0,486,7],[401,0,401,6],[402,0,402,6],[524,2,525,3],[524,4,525,5],[524,6,525,6],[470,0,470,6],[471,0,471,7],[393,1,393,4],[555,4,555,6],[550,0,550,6],[551,0,551,7],[552,0,553,0],[552,1,553,1],[552,2,553,2],[552,3,553,3],[492,0,492,6],[472,0,473,0],[472,1,473,4],[472,5,473,5],[472,6,473,6],[489,4,489,6],[481,0,482,0],[481,1,482,4],[481,5,482,5],[793,1,793,6],[547,7,548,7],[549,1,549,4],[615,5,615,7],[618,1,618,3],[556,4,556,6],[422,3,423,5],[425,1,425,6],[428,1,428,3],[428,5,428,7],[429,5,429,7],[432,1,432,3],[527,5,527,6],[527,7,528,7],[484,0,484,6],[481,6,482,6],[481,7,482,7],[483,1,483,4],[526,0,526,7],[527,0,528,0],[527,1,528,1],[527,2,528,2],[527,3,527,4],[493,0,493,6],[370,0,371,0],[370,4,371,5],[370,6,371,6],[372,0,372,7],[373,0,374,0],[373,1,374,1],[373,2,374,2],[768,5,768,7],[769,5,769,7],[557,0,557,6],[558,0,558,6],[455,2,456,2],[455,3,456,5],[458,1,458,6],[461,0,462,0],[461,2,462,3],[487,0,488,0],[479,0,479,6],[480,0,480,7],[590,1,590,3],[646,2,647,2],[646,3,647,5],[547,5,548,5],[547,6,548,6],[655,5,655,7],[658,1,658,3],[535,0,535,6],[536,0,536,7],[537,0,538,0],[537,1,538,4],[537,5,538,5],[537,6,538,6],[537,7,538,7],[539,1,539,4],[611,1,611,6],[614,1,614,3],[542,0,542,5],[552,4,553,6],[552,7,553,7],[554,4,554,6],[543,0,543,6],[379,0,379,6],[380,0,380,7],[381,0,382,0],[381,1,382,4],[381,5,382,5],[381,6,382,6],[381,7,382,7],[650,1,650,6],[654,1,654,3],[654,5,654,7],[384,1,384,4],[398,4,398,6],[394,0,394,6],[395,0,395,7],[396,0,397,0],[396,1,397,1],[396,2,397,2],[396,3,397,3],[396,4,397,6],[396,7,397,7],[385,0,385,6],[386,0,386,5],[387,0,387,6],[399,4,399,6],[614,5,614,7],[796,5,796,7],[390,0,390,7],[391,0,392,0],[391,1,392,4],[391,5,392,5],[391,6,392,6],[391,7,392,7],[704,2,705,2],[582,1,582,6],[586,1,586,3],[586,5,586,7],[587,5,587,7],[540,1,540,4],[541,0,541,6],[544,0,544,6],[546,0,546,7],[547,0,548,0],[547,1,548,4],[607,2,608,2],[607,3,608,5],[704,3,705,5],[708,1,708,6],[711,1,711,3],[364,1,364,6],[368,1,368,3],[368,5,368,7],[369,5,369,7],[306,5,306,7],[209,1,209,3],[336,1,336,3],[336,5,336,7],[337,5,337,7],[340,1,340,3],[264,2,265,2],[264,3,265,5],[297,2,298,2],[297,3,298,5],[301,1,301,6],[305,1,305,3],[305,5,305,7],[332,1,332,6],[273,5,273,7],[268,1,268,6],[272,1,272,3],[328,2,329,2],[243,1,243,3],[276,1,276,3],[240,5,240,7],[272,5,272,7],[231,2,232,2],[163,3,164,5],[167,1,167,6],[105,1,105,3],[143,1,143,2],[175,1,175,3],[360,2,361,2],[360,3,361,5],[309,1,309,3],[235,1,235,6],[239,1,239,3],[205,1,205,3],[106,5,106,7],[105,5,105,7],[131,2,132,2],[131,3,132,5],[135,1,135,6],[139,1,139,3],[139,5,139,7],[140,5,140,7],[163,2,164,2],[171,1,171,3],[171,5,171,7],[172,5,172,7],[197,2,198,2],[197,3,198,5],[201,1,201,6],[205,5,205,7],[206,5,206,7],[239,5,239,7],[76,5,76,7],[75,5,75,7],[67,2,68,2],[67,3,68,5],[75,1,75,3],[71,1,71,7],[72,1,72,2],[768,1,768,3],[740,5,740,7],[741,1,741,3],[761,2,762,2],[761,3,762,5],[765,1,765,6],[767,2,767,3],[97,2,98,2],[97,3,98,5],[101,1,101,6],[518,2,519,2],[518,3,519,5],[521,1,521,6],[578,2,579,2],[578,3,579,5],[328,3,329,5],[231,3,232,5],[0,2,1,2],[0,3,1,5],[4,1,4,6],[8,1,8,3],[8,5,8,7],[43,5,43,7],[34,2,35,2],[34,3,35,5],[38,1,38,6],[9,5,9,7],[42,1,42,3],[42,5,42,7],[880,2,881,2],[880,3,881,5],[883,1,883,7],[884,1,884,2],[849,1,849,3],[850,5,850,7],[849,5,849,6],[847,2,848,2],[847,3,848,5],[676,2,677,2],[676,3,677,5],[680,1,680,6],[684,1,684,3],[684,5,684,7],[685,5,685,7],[688,1,688,3],[851,5,851,7],[852,1,852,3],[732,2,733,2],[732,3,733,5],[736,1,736,6],[739,1,739,3],[739,5,739,7],[738,2,738,3],[711,5,711,7],[712,5,712,7],[713,1,713,3],[795,1,795,3],[795,5,795,7],[797,1,797,3],[770,1,770,3],[790,2,791,2],[790,3,791,5],[907,0,907,3],[949,0,949,4],[910,0,910,6],[914,0,914,6],[939,0,939,4],[941,0,941,6],[947,0,947,4],[887,1,887,3],[887,5,887,7],[888,5,888,7]]}
[]
[]
[]
[]
["SERVIÇO: ","EXECUÇÃO DAS OBRAS E SERVIÇOS RELATIVOS À RECUPERAÇÃO E ENRIQUECIMENTO DE ÁREAS DEGRADADAS DA ETAPA 1 DO PROJETO DE IRRIGAÇÃO SALITRE, EM JUAZEIRO, ESTADO DA BAHIA."]
["LOCAL: ","6ª Superintendência Regional"]
["MUNICÍPIOS:","Juazeiro - BA"]
[]
[null,"COMPOSIÇÃO ANALÍTICA DE PREÇO UNITÁRIO",null,null,null,"Data Base SINAPI/BA: Agosto 2014  "]
[{"$nulls":5},"Data Base SICRO/BA: Maio 2014"]
["Código","Base"]
[null,null,"Insumo/Serv.","Descrição","Unidade","Quantidade","Preço Unitário","Preço Total"]
["CP001","Mobilização de Pessoal e Equipamentos",null,null,"un "]
["1286","Sinapi","I","Cavalo com carreta prancha 20t","h     ",20,160.94999999999999,{"$f":"+ROUND(F14*G14,2)","v":3219}]
["1142","Sinapi","I","Caminhão Carroceria 6 a 8t","h     ",20,43.35,{"$f":"+ROUND(F15*G15,2)","v":867}]
["1133","Sinapi","I","Caminhão Basculante 5 m³","h     ",20,61.2,{"$f":"+ROUND(F16*G16,2)","v":1224}]
["Tabela Consultiva Jan/ 2014","Codevasf","I","Veículo Leve Tipo Hatch 1.0 Flex (72 CV), com motorista","km",700,1.19,{"$f":"+ROUND(F17*G17,2)","v":833}]
[]
[null,null,null,"Total da Composição sem BDI",null,null,null,{"$f":"ROUND(SUM(H14:H17),2)","v":6143}]
{"$rows_empty":14}
[1]
[]
[]
[]
[]
["SERVIÇO: ","EXECUÇÃO DAS OBRAS E SERVIÇOS RELATIVOS À RECUPERAÇÃO E ENRIQUECIMENTO DE ÁREAS DEGRADADAS DA ETAPA 1 DO PROJETO DE IRRIGAÇÃO SALITRE, EM JUAZEIRO, ESTADO DA BAHIA."]
["LOCAL: ","6ª Superintendência Regional"]
["MUNICÍPIOS:","Juazeiro - BA"]
[]
[null,"COMPOSIÇÃO ANALÍTICA DE PREÇO UNITÁRIO",null,null,null,"Data Base SINAPI/BA: Agosto 2014  "]
[{"$nulls":5},"Data Base SICRO/BA: Maio 2014"]
["Código","Base"]
[null,null,"Insumo/Serv.","Descrição","Unidade","Quantidade","Preço Unitário","Preço Total"]
["CP002","Desmobilização de Pessoal e Equipamentos",null,null,"un "]
["1286","Sinapi","I","Cavalo com carreta prancha 20t","h     ",20,160.94999999999999,{"$f":"+ROUND(F48*G48,2)","v":3219}]
["1142","Sinapi","I","Caminhão Carroceria 6 a 8t","h     ",20,43.35,{"$f":"+ROUND(F49*G49,2)","v":867}]
["1133","Sinapi","I","Caminhão Basculante 5 m3","h     ",20,61.2,{"$f":"+ROUND(F50*G50,2)","v":1224}]
["Tabela Consultiva Jan/ 2014","Codevasf","I","Veículo Leve Tipo Hatch 1.0 Flex (72 CV), com motorista","km",700,1.19,{"$f":"+ROUND(F51*G51,2)","v":833}]
[]
[null,null,null,"Total da Composição sem BDI",null,null,null,{"$f":"ROUND(SUM(H48:H51),2)","v":6143}]
{"$rows_empty":13}
[2]
[]
[]
[]
[]
["SERVIÇO: ","EXECUÇÃO DAS OBRAS E SERVIÇOS RELATIVOS À RECUPERAÇÃO E ENRIQUECIMENTO DE ÁREAS DEGRADADAS DA ETAPA 1 DO PROJETO DE IRRIGAÇÃO SALITRE, EM JUAZEIRO, ESTADO DA BAHIA."]
["LOCAL: ","6ª Superintendência Regional"]
["MUNICÍPIOS:","Juazeiro - BA"]
[]
[null,"COMPOSIÇÃO ANALÍTICA DE PREÇO UNITÁRIO",null,null,null,"Data Base SINAPI/BA: Agosto 2014  "]
[{"$nulls":5},"Data Base SICRO/BA: Maio 2014"]
["Código","Base"]
[null,null,"Insumo/Serv.","Descrição","Unidade","Quantidade","Preço Unitário","Preço Total"]
["CP003",null,null,"Administração local e manutenção de canteiro","un ","h*d*quant*mês"]
["2706","Sinapi","I","Engenheiro Junior","h     ",{"$f":"4*22*1*6","v":528},56.76,{"$f":"+ROUND(F81*G81,2)","v":29969.279999999999}]
["2355","Sinapi","I","Desenhista Detalhista","h     ",{"$f":"8*22*1*2","v":352},10.14,3569.28]
["528","Sinapi","I","Auxiliar Técnico","h     ",{"$f":"8*22*1*6","v":1056},19.16,20232.96]
["4069","Sinapi","I","Mestre de Obra","h     ",{"$f":"8*22*1*6","v":1056},40.76,43042.559999999998]
["0253","Sinapi","I","Almoxarife","h     ",{"$f":"8*22*1*6","v":1056},16.47,17392.32]
["10508","Sinapi","I","Vigia","h     ",{"$f":"12*30*1*6","v":2160},13.3,28728]
["Tabela Consultiva Jan/ 2014","Codevasf","I","Veículo Leve Tipo Hatch 1.0 Flex (72 CV), com motorista","km",{"$f":"20*22*6+2*2*25*6","v":3240},1.19,3855.6]
[]
[null,null,null,"Total da Composição sem BDI",null,null,null,{"$f":"ROUND(SUM(H81:H87),2)","v":146790}]
{"$rows_empty":7}
[3]
[]
[]
[]
[]
["SERVIÇO: ","EXECUÇÃO DAS OBRAS E SERVIÇOS RELATIVOS À RECUPERAÇÃO E ENRIQUECIMENTO DE ÁREAS DEGRADADAS DA ETAPA 1 DO PROJETO DE IRRIGAÇÃO SALITRE, EM JUAZEIRO, ESTADO DA BAHIA."]
["LOCAL: ","6ª Superintendência Regional"]
["MUNICÍPIOS:","Juazeiro - BA"]
[]
[null,"COMPOSIÇÃO ANALÍTICA DE PREÇO UNITÁRIO",null,null,null,"Data Base SINAPI/BA: Agosto 2014  "]
[{"$nulls":5},"Data Base SICRO/BA: Maio 2014"]
["Código","Base"]
[null,null,"Insumo/Serv.","Descrição","Unidade","Quantidade","Preço Unitário","Preço Total"]
["CP004","Construção de Paliçada",null,null,"m2"]
["72838","Sinapi","S","Transporte c/ caminhão carroceria","txkm",0.75,0.67,{"$f":"+ROUND(F111*G111,2)","v":0.5}]
[10763,"Sinapi","I","Motosserra a Gasolina Portátil","h     ",0.25,1.76,{"$f":"+ROUND(F112*G112,2)","v":0.44}]
["79480","Sinapi","S","Escavação Mecânica ","m3",0.3,2.25,{"$f":"+ROUND(F113*G113,2)","v":0.68}]
["6121","Sinapi","I","Auxiliar de Serv. Gerais","h     ",1,6.26,{"$f":"+ROUND(F114*G114,2)","v":6.26}]
[]
[null,null,null,"Total da Composição sem BDI",null,null,null,{"$f":"ROUND(SUM(H111:H114),2)","v":7.88}]
{"$rows_empty":14}
[4]
[]
[]
[]
[]
["SERVIÇO: ","EXECUÇÃO DAS OBRAS E SERVIÇOS RELATIVOS À RECUPERAÇÃO E ENRIQUECIMENTO DE ÁREAS DEGRADADAS DA ETAPA 1 DO PROJETO DE IRRIGAÇÃO SALITRE, EM JUAZEIRO, ESTADO DA BAHIA."]
["LOCAL: ","6ª Superintendência Regional"]
["MUNICÍPIOS:","Juazeiro - BA"]
[]
[null,"COMPOSIÇÃO ANALÍTICA DE PREÇO UNITÁRIO",null,null,null,"Data Base SINAPI/BA: Agosto 2014  "]
[{"$nulls":5},"Data Base SICRO/BA: Maio 2014"]
["Código","Base"]
[null,null,"Insumo/Serv.","Descrição","Unidade","Quantidade","Preço Unitário","Preço Total"]
["CP005","Cerca de Arame Farpado 10 Fios",null,null,"m"]
["340","Sinapi","I","ARAME FARPADO 16 BWG 4 X 4\" - 23,50 KG/ROLO 500M ","m",10,0.64,{"$f":"+ROUND(F145*G145,2)","v":6.4}]
[335,"Sinapi","I","ARAME GALVANIZADO 10 BWG - 3,40MM - 71,30 G/M ","kg",{"$f":"71.3*5*1.4/1000","v":0.49909999999999999},7.89,3.94]
["344","Sinapi","I","ARAME GALVANIZADO 16 BWG - 1,65MM - 16,60 G/M","kg",{"$f":"16.6*0.35*20/1000","v":0.11620000000000001},9.8699999999999992,1.1499999999999999]
["4111","Sinapi","I","ESCORA OU MOURAO DE CONCRETO 10X10CM H = 2,30M ","Unidade",{"$f":"1/10","v":0.1},24.78,2.48]
["4107","Sinapi","I","MOURAO CONCRETO RETO 15X15CM H = 2,30M ","Unidade",0.02,30.29,0.61]
["CP 027 (5652)","Cotação e Sinapi","S","Concreto Não Estrutural","m3",{"$f":"0.04/10","v":4.0000000000000001E-3},{"$f":"H319","v":285.2},1.1399999999999999]
["72838","Sinapi","S","Transporte com Caminhão Carroceria","tXkm",0.68,0.67,0.46]
["72213","Sinapi","S","Limpeza manual Geral","m2",0.3,2.81,0.84]
["6111","Sinapi","I","Servente","h",0.08,6.56,0.52]
["4750","Sinapi","I","Pedreiro","h",0.04,11.18,0.45]
[]
[null,null,null,"Total da Composição sem BDI",null,null,null,{"$f":"ROUND(SUM(H145:H154),2)","v":17.989999999999998}]
[]
[]
[]
[]
[]
[]
[5]
[]
[]
[]
[]
["SERVIÇO: ","EXECUÇÃO DAS OBRAS E SERVIÇOS RELATIVOS À RECUPERAÇÃO E ENRIQUECIMENTO DE ÁREAS DEGRADADAS DA ETAPA 1 DO PROJETO DE IRRIGAÇÃO SALITRE, EM JUAZEIRO, ESTADO DA BAHIA."]
["LOCAL: ","6ª Superintendência Regional"]
["MUNICÍPIOS:","Juazeiro - BA"]
[]
[null,"COMPOSIÇÃO ANALÍTICA DE PREÇO UNITÁRIO",null,null,null,"Data Base SINAPI/BA: Agosto 2014  "]
[{"$nulls":5},"Data Base SICRO/BA: Maio 2014"]
["Código","Base"]
[null,null,"Insumo/Serv.","Descrição","Unidade","Quantidade","Preço Unitário","Preço Total"]
["CP006","Gradeamento de Solos Descompactados",null,null,"m2"]
["5689","Sinapi","S","Grade Aradora","CHP",1.4999999999999999E-2,6.51,{"$f":"+ROUND(F177*G177,2)","v":0.1}]
["6111","Sinapi","I","Servente","h",0.01,6.56,{"$f":"+ROUND(F178*G178,2)","v":7.0000000000000007E-2}]
[]
[null,null,null,"Total da Composição sem BDI",null,null,null,{"$f":"ROUND(SUM(H177:H178),2)","v":0.17}]
{"$rows_empty":16}
[6]
[]
[]
[]
[]
["SERVIÇO: ","EXECUÇÃO DAS OBRAS E SERVIÇOS RELATIVOS À RECUPERAÇÃO E ENRIQUECIMENTO DE ÁREAS DEGRADADAS DA ETAPA 1 DO PROJETO DE IRRIGAÇÃO SALITRE, EM JUAZEIRO, ESTADO DA BAHIA."]
["LOCAL: ","6ª Superintendência Regional"]
["MUNICÍPIOS:","Juazeiro - BA"]
[]
[null,"COMPOSIÇÃO ANALÍTICA DE PREÇO UNITÁRIO",null,null,null,"Data Base SINAPI/BA: Agosto 2014  "]
[{"$nulls":5},"Data Base SICRO/BA: Maio 2014"]
["Código","Base"]
[null,null,"Insumo/Serv.","Descrição","Unidade","Quantidade","Preço Unitário","Preço Total"]
["CP007","Plantio de Espécies Nativas",null,null,"ha "]
["360","Sinapi","I","Mudas Rasteiras da região","Unidade",416,1,{"$f":"+ROUND(F211*G211,2)","v":416}]
[349,"Sinapi","I","Mudas Herbáceas da Região","Unidade",416,1.05,436.8]
["365","Sinapi","I","Mudas Arbustivas da Região","Unidade",833,5.42,4514.8599999999997]
["79480","Sinapi","S","Escavação Em Campo Aberto","m3",107,2.25,240.75]
["79489","Sinapi","S","Reaterro Manual sem Apiloamento","m3",107,5.0599999999999996,541.41999999999996]
["159","Sinapi","I","Adubo Orgânico Bovino","m3",17,164.99,2804.83]
["CT001","Cotação","I","Polímero Hidroabsorvente Agrícola","g",4166,0.04,166.64]
["CT002","Cotação","I","Isca Para Combate a Formiga","kg",1,7,7]
["72838","Sinapi","S","Transporte com Caminhão Carroceria","txkm",266.7,0.67,178.69]
["6121","Sinapi","I","Auxiliar de Serviços Gerais","h",48,6.26,300.48]
["25964","Sinapi","I","Jardineiro","h",8,8.4700000000000006,67.760000000000005]
[]
[null,null,null,"Total da Composição sem BDI",null,null,null,{"$f":"ROUND(SUM(H211:H221),2)","v":9675.23}]
{"$rows_empty":7}
[7]
[]
[]
[]
[]
["SERVIÇO: ","EXECUÇÃO DAS OBRAS E SERVIÇOS RELATIVOS À RECUPERAÇÃO E ENRIQUECIMENTO DE ÁREAS DEGRADADAS DA ETAPA 1 DO PROJETO DE IRRIGAÇÃO SALITRE, EM JUAZEIRO, ESTADO DA BAHIA."]
["LOCAL: ","6ª Superintendência Regional"]
["MUNICÍPIOS:","Juazeiro - BA"]
[]
[null,"COMPOSIÇÃO ANALÍTICA DE PREÇO UNITÁRIO",null,null,null,"Data Base SINAPI/BA: Agosto 2014  "]
[{"$nulls":5},"Data Base SICRO/BA: Maio 2014"]
["Código","Base"]
[null,null,"Insumo/Serv.","Descrição","Unidade","Quantidade","Preço Unitário","Preço Total"]
["CP008","Recomposição de Banco de Sementes",null,null,"ha "]
["CT003","Cotação","S","Aquisição e Fornecimento de sementes de Espécies Nativas","kg",1,50,{"$f":"+ROUND(F245*G245,2)","v":50}]
[6121,"Sinapi","I","Auxiliar de Serviços Gerais","h",2,6.26,{"$f":"+ROUND(F246*G246,2)","v":12.52}]
[]
[null,null,null,"Total da Composição sem BDI",null,null,null,{"$f":"ROUND(SUM(H245:H246),2)","v":62.52}]
{"$rows_empty":15}
[8]
[]
[]
[]
[]
["SERVIÇO: ","EXECUÇÃO DAS OBRAS E SERVIÇOS RELATIVOS À RECUPERAÇÃO E ENRIQUECIMENTO DE ÁREAS DEGRADADAS DA ETAPA 1 DO PROJETO DE IRRIGAÇÃO SALITRE, EM JUAZEIRO, ESTADO DA BAHIA."]
["LOCAL: ","6ª Superintendência Regional"]
["MUNICÍPIOS:","Juazeiro - BA"]
[]
[null,"COMPOSIÇÃO ANALÍTICA DE PREÇO UNITÁRIO",null,null,null,"Data Base SINAPI/BA: Agosto 2014  "]
[{"$nulls":5},"Data Base SICRO/BA: Maio 2014"]
["Código","Base"]
[null,null,"Insumo/Serv.","Descrição","Unidade","Quantidade","Preço Unitário","Preço Total"]
["CP009","Aquisição, fornecimento e plantio de vetiver",null,null,"un "]
["CT004","Cotação","S","Aquisição e fornecimento de mudas de vetiver (Vetiveria zizanioides)","un ",{"$f":"120000/120000","v":1},{"$f":"(1+0.64+0.68)/3","v":0.77333333333333343},{"$f":"+ROUND(F278*G278,2)","v":0.77}]
["159","Sinapi","S","Adubo Orgânico Bovino","m³",2.9999999999999997E-4,164.99,{"$f":"+ROUND(F279*G279,2)","v":0.05}]
["CT001","Cotação","S","Polímero Hidroabsorvente Agrícola","kg",{"$f":"2/1000","v":2E-3},50,{"$f":"+ROUND(F280*G280,2)","v":0.1}]
[6111,"Sinapi","I","Servente","h",{"$f":"560/120000","v":4.6666666666666671E-3},6.56,{"$f":"+ROUND(F281*G281,2)","v":0.03}]
[25964,"Sinapi","I","Jardineiro","h",{"$f":"80/120000","v":6.6666666666666664E-4},8.4700000000000006,{"$f":"+ROUND(F282*G282,2)","v":0.01}]
[]
[null,null,null,"Total da Composição sem BDI",null,null,null,{"$f":"ROUND(SUM(H278:H282),2)","v":0.96}]
{"$rows_empty":12}
[9]
[]
[]
[]
[]
["SERVIÇO: ","EXECUÇÃO DAS OBRAS E SERVIÇOS RELATIVOS À RECUPERAÇÃO E ENRIQUECIMENTO DE ÁREAS DEGRADADAS DA ETAPA 1 DO PROJETO DE IRRIGAÇÃO SALITRE, EM JUAZEIRO, ESTADO DA BAHIA."]
["LOCAL: ","6ª Superintendência Regional"]
["MUNICÍPIOS:","Juazeiro - BA"]
[]
[null,"ATUALIZAÇÃO DE PREÇO SINAPI (BRITA 1)",null,null,null,"Data Base SINAPI/BA: Agosto 2014  "]
[{"$nulls":5},"Data Base SICRO/BA: Maio 2014"]
["Código","Base"]
[null,null,"Insumo/Serv.","Descrição","Unidade","Quantidade","Preço Unitário","Preço Total"]
["CP010","5652 - CONCRETO NAO ESTRUTURAL, CONSUMO 150KG/M3",null,null,"m"]
[{"$nulls":7},{"$f":"+ROUND(F311*G311,2)","v":0}]
[88316,"Sinapi","S","SERVENTE COM ENCARGOS COMPLEMENTARES","h",6,11.25,67.5]
["370","Sinapi","I","AREIA MEDIA - POSTO JAZIDA / FORNECEDOR (SEM FRETE)","m³",0.49,56.42,27.65]
["643","Sinapi","I","BETONEIRA 320L DIESEL 5,5HP S/ CARREGADOR MECANICO","h",0.65,3.24,2.11]
["1379","Sinapi","I","CIMENTO PORTLAND COMPOSTO CP II-32","kg",150,0.53,79.5]
["CT 005","COTAÇÃO 005","I","Brita 1 (19 mm)","M³",0.98,81.67,80.040000000000006]
["72839","SINAPI","S","TRANSPORTE COMERCIAL COM CAMINHAO BASCULANTE 6 M3, RODOVIA EM LEITO NATURAL","TXKM",{"$f":"1.4*30*F316","v":41.16},0.69,{"$f":"+ROUND(F317*G317,2)","v":28.4}]
[]
[null,null,null,"Total da Composição sem BDI",null,null,null,{"$f":"ROUND(SUM(H311:H317),2)","v":285.2}]
{"$rows_empty":8}
[10]
[]
[]
[]
[]
["SERVIÇO: ","EXECUÇÃO DAS OBRAS E SERVIÇOS RELATIVOS À RECUPERAÇÃO E ENRIQUECIMENTO DE ÁREAS DEGRADADAS DA ETAPA 1 DO PROJETO DE IRRIGAÇÃO SALITRE, EM JUAZEIRO, ESTADO DA BAHIA."]
["LOCAL: ","6ª Superintendência Regional"]
["MUNICÍPIOS:","Juazeiro - BA"]
[]
[null,"ATUALIZAÇÃO DE PREÇO SICRO 2 (BRITA 1)",null,null,null,"Data Base SINAPI/BA: Agosto 2014  "]
[{"$nulls":5},"Data Base SICRO/BA: Maio 2014"]
["Código","Base"]
[null,null,"Insumo/Serv.","Descrição","Unidade","Quantidade","Preço Unitário","Preço Total"]
["CP 011","2 S 04 941 82 - Descida d'água cortes em degraus arm-DCD 02 AC/BC",null,null,"m³"]
[]
["T501","SICRO 2","I","Encarregado de turma","H",1.01,20.25,{"$f":"+ROUND(F343*G343,2)","v":20.45}]
["-","SICRO 2",null,"Adc.M.O. - Ferramentas: ( 15,51 %)","H",1,3.17,3.17]
["1 A 01 401 01","SICRO 2","I","Forma comum de madeira","M²",0.16800000000000001,61.8,10.38]
["CP 013  (1 A 01 415 51)","SICRO 2 E COMPOSIÇÃO","S","Concr estr fck=15MPa c.raz uso ger conf/lanç AC/BC - Brita 1 a preço local","M³",0.16800000000000001,{"$f":"H403","v":339.32992160000003},57.01]
["1 A 01 580 02","SICRO 2","S","Fornecimento, preparo e colocação formas aço CA 50","KG",6.16,6.56,40.409999999999997]
["1 A 01 890 01","SICRO 2","S","Escavação manual em material de 1a categoria","M³",0.45,26.84,12.08]
["1 A 01 893 01","SICRO 2","S","Compactação manual","M³",0.2,9.9700000000000006,1.99]
[]
[]
[null,null,null,"Total da Composição sem BDI",null,null,null,{"$f":"SUM(H343:H349)","v":145.49}]
{"$rows_empty":7}
[11]
[]
[]
[]
[]
["SERVIÇO: ","EXECUÇÃO DAS OBRAS E SERVIÇOS RELATIVOS À RECUPERAÇÃO E ENRIQUECIMENTO DE ÁREAS DEGRADADAS DA ETAPA 1 DO PROJETO DE IRRIGAÇÃO SALITRE, EM JUAZEIRO, ESTADO DA BAHIA."]
["LOCAL: ","6ª Superintendência Regional"]
["MUNICÍPIOS:","Juazeiro - BA"]
[]
[null,"ATUALIZAÇÃO DE PREÇO SICRO 2 (BRITA 1)",null,null,null,"Data Base SINAPI/BA: Agosto 2014  "]
[{"$nulls":5},"Data Base SICRO/BA: Maio 2014"]
["CP 012","CÓDIGO:\n","Concr estr fck=15MPa c.raz uso ger conf/lanç AC/BC",null,"Produção da Equipe: ",null,2.5,"UNIDADE:\n"]
[null,"1 A 01 415 51",{"$nulls":5},"m³"]
["A - EQUIPAMENTO"]
["CÓDIGO","DESCRIÇÃO","QUANT.","UTILIZAÇÃO",null,"CUSTO OPERATIVO",null,"CUSTO\nHORÁRIO"]
[null,null,null,"Operativa","Improdutiva","Operativo","Improdutivo"]
["E302","Betoneira - 400 l (4 kW)",1,1,0,13.08,11.04,{"$f":"F376*D376*C376+G376*E376*C376","v":13.08}]
["E304","Transportador Manual - carrinho de mão 80 l",3,0.69,0.31,0.14000000000000001,0,{"$f":"F377*D377*C377+G377*E377*C377","v":0.2898}]
["E306","Vibrador de Concreto - de imersão (2 kW)",2,1,0,12.24,11.04,{"$f":"F378*D378*C378+G378*E378*C378","v":24.48}]
["E509","Grupo Gerador - 32,0 KVA (29 kW)",1,1,0,28.82,11.04,{"$f":"F379*D379*C379+G379*E379*C379","v":28.82}]
["Custo Horário dos equipamentos",{"$nulls":6},{"$f":"SUM(H376:H379)","v":66.669800000000009}]
["B - MÃO-DE-OBRA SUPLEMENTAR"]
["CÓDIGO","DESCRIÇÃO",null,null,null,"QUANT.","SALÁRIO - HORA","CUSTO\nHORÁRIO"]
[]
["T701","Servente",null,null,null,14,6.75,{"$f":"F384*G384","v":94.5}]
[" T604","Pedreiro",null,null,null,1,11.04,{"$f":"F385*G385","v":11.04}]
["Custo Horário da Mão-de-Obra",{"$nulls":6},{"$f":"SUM(H384:H385)","v":105.53999999999999}]
["Adc.M.O. - Ferramentas: ",{"$nulls":5},20.51,{"$f":"H386*G387%","v":21.646253999999999}]
["Custo Horário de Execução",{"$nulls":6},{"$f":"SUM(H386:H387)+H380","v":193.856054}]
["Custo Unitário de Execução",{"$nulls":6},{"$f":"(H388)/G371","v":77.542421599999997}]
["12"]
["C - MATERIAL"]
["CÓDIGO","DESCRIÇÃO",null,null,null,"QUANT.","PREÇO UNITÁRIO","CUSTO\nHORÁRIO"]
[]
["M202","Cimento asfáltico CP II-32",null,null,null,270,0.46,{"$f":"F394*G394","v":124.2}]
["Custo total do material",{"$nulls":6},{"$f":"SUM(H394:H394)","v":124.2}]
["D - ATIVIDADES AUXILIARES"]
["CÓDIGO","DESCRIÇÃO","QUANT.","UNIDADE","PREÇO UNITÁRIO",null,null,"CUSTO\nHORÁRIO"]
[]
["1 A 00 716 00","Areia comercial",0.93,"m³",54.83,null,null,{"$f":"C399*E399","v":50.991900000000001}]
["Cotação 005","Brita 1 (19 mm)",0.84,"m³",81.67,null,null,{"$f":"C400*E400","v":68.602800000000002}]
["1 A 00 001 91","Transporte comercial c/ basc. 10m³ rod. não pav.",{"$f":"1.4*30*C400","v":35.28},"txkm",0.51,null,null,{"$f":"C401*E401","v":17.992800000000003}]
["Custo total das atividades",{"$nulls":6},{"$f":"SUM(H399:H401)","v":137.58750000000001}]
["Custo Unitário Direto Total sem BDI",{"$nulls":6},{"$f":"H389+H395+H402","v":339.32992160000003}]
{"$rows_empty":18}
[13]
[]
[]
[]
["SERVIÇO: ","EXECUÇÃO DAS OBRAS E SERVIÇOS RELATIVOS À RECUPERAÇÃO E ENRIQUECIMENTO DE ÁREAS DEGRADADAS DA ETAPA 1 DO PROJETO DE IRRIGAÇÃO SALITRE, EM JUAZEIRO, ESTADO DA BAHIA."]
["LOCAL: ","6ª Superintendência Regional"]
["MUNICÍPIOS:","Juazeiro - BA"]
[null,"ATUALIZAÇÃO DE PREÇO SICRO 2 (BRITA 1)",null,null,null,"Data Base SINAPI/BA: Agosto 2014  "]
[{"$nulls":5},"Data Base SICRO/BA: Maio 2014"]
["Código","Base"]
[null,null,"Insumo/Serv.","Descrição","Unidade","Quantidade","Preço Unitário","Preço Total"]
["CP 013","2 S 04 950 21 - Dissipador de energia - DEB 01",null,null,"m³"]
[]
["T501","SICRO 2","I","Encarregado de turma","H",1.4,20.25,{"$f":"+ROUND(F435*G435,2)","v":28.35}]
["-","SICRO 2","I","Adc.M.O. - Ferramentas: ( 15,51 %)","H",1,4.4000000000000004,4.4000000000000004]
["1 A 00 901 01","SICRO 2","S","Alvenaria de pedra argamassada","M³",0.28999999999999998,162.34,47.08]
["1 A 01 401 01","SICRO 2","S","Forma comum de madeira","M²",0.37,61.8,22.87]
["CP 015 (1 A 01 412 01)","SICRO 2 E COMPOSIÇÃO","S","Concreto fck=15MPa contr raz uso geral conf e lanç - Brita 1 a preço local","M³",0.30599999999999999,{"$f":"H494","v":339.32992160000003},103.83]
["1 A 01 890 01","SICRO 2","S","Escavação manual em material de 1a categoria","M³",0.45,26.84,12.08]
["1 A 01 893 01","SICRO 2","S","Compactação manual","M³",0.2,9.9700000000000006,1.99]
[]
[]
[null,null,null,"Total da Composição sem BDI",null,null,null,{"$f":"SUM(H435:H441)","v":220.60000000000002}]
{"$rows_empty":10}
[14]
[]
[]
[]
["SERVIÇO: ","EXECUÇÃO DAS OBRAS E SERVIÇOS RELATIVOS À RECUPERAÇÃO E ENRIQUECIMENTO DE ÁREAS DEGRADADAS DA ETAPA 1 DO PROJETO DE IRRIGAÇÃO SALITRE, EM JUAZEIRO, ESTADO DA BAHIA."]
["LOCAL: ","6ª Superintendência Regional"]
["MUNICÍPIOS:","Juazeiro - BA"]
["CP 014","CÓDIGO:\n"," Concreto fck=15MPa contr raz uso geral conf e lanç",null,"Produção da Equipe: ",null,2.5,"UNIDADE:\n"]
[null,"1 A 01 412 01",{"$nulls":5},"m³"]
["A - EQUIPAMENTO"]
["CÓDIGO","DESCRIÇÃO","QUANT.","UTILIZAÇÃO",null,"CUSTO OPERATIVO",null,"CUSTO\nHORÁRIO"]
[null,null,null,"Operativa","Improdutiva","Operativo","Improdutivo"]
["E302","Betoneira - 400 l (4 kW)",1,1,0,13.08,11.04,{"$f":"F467*D467*C467+G467*E467*C467","v":13.08}]
["E304","Transportador Manual - carrinho de mão 80 l",3,0.69,0.31,0.14000000000000001,0,{"$f":"F468*D468*C468+G468*E468*C468","v":0.2898}]
["E306","Vibrador de Concreto - de imersão (2 kW)",2,1,0,12.24,11.04,{"$f":"F469*D469*C469+G469*E469*C469","v":24.48}]
["E509","Grupo Gerador - 32,0 KVA (29 kW)",1,1,0,28.82,11.04,{"$f":"F470*D470*C470+G470*E470*C470","v":28.82}]
["Custo Horário dos equipamentos",{"$nulls":6},{"$f":"SUM(H467:H470)","v":66.669800000000009}]
["B - MÃO-DE-OBRA SUPLEMENTAR"]
["CÓDIGO","DESCRIÇÃO",null,null,null,"QUANT.","SALÁRIO - HORA","CUSTO\nHORÁRIO"]
[]
["T701","Servente",null,null,null,14,6.75,{"$f":"F475*G475","v":94.5}]
[" T604","Pedreiro",null,null,null,1,11.04,{"$f":"F476*G476","v":11.04}]
["Custo Horário da Mão-de-Obra",{"$nulls":6},{"$f":"SUM(H475:H476)","v":105.53999999999999}]
["Adc.M.O. - Ferramentas: ",{"$nulls":5},20.51,{"$f":"H477*G478%","v":21.646253999999999}]
["Custo Horário de Execução",{"$nulls":6},{"$f":"SUM(H477:H478)+H471","v":193.856054}]
["Custo Unitário de Execução",{"$nulls":6},{"$f":"(H479)/G462","v":77.542421599999997}]
["C - MATERIAL"]
["CÓDIGO","DESCRIÇÃO",null,null,null,"QUANT.","PREÇO UNITÁRIO","CUSTO\nHORÁRIO"]
[]
["M202","Cimento asfáltico CP II-32",null,null,null,270,0.46,{"$f":"F484*G484","v":124.2}]
["Custo total do material",{"$nulls":6},{"$f":"SUM(H484:H484)","v":124.2}]
["15"]
["D - ATIVIDADES AUXILIARES"]
["CÓDIGO","DESCRIÇÃO","QUANT.","UNIDADE","PREÇO UNITÁRIO",null,null,"CUSTO\nHORÁRIO"]
[]
["1 A 00 716 00","Areia comercial",0.93,"m³",54.83,null,null,{"$f":"C490*E490","v":50.991900000000001}]
["Cotação 005","Brita 1 (19 mm)",0.84,"m³",81.67,null,null,{"$f":"C491*E491","v":68.602800000000002}]
["1 A 00 001 91","Transporte comercial c/ basc. 10m³ rod. não pav.",{"$f":"1.4*30*C491","v":35.28},"txkm",0.51,null,null,{"$f":"C492*E492","v":17.992800000000003}]
["Custo total das atividades",{"$nulls":6},{"$f":"SUM(H490:H492)","v":137.58750000000001}]
["Custo Unitário Direto Total sem BDI",{"$nulls":6},{"$f":"H480+H485+H493","v":339.32992160000003}]
{"$rows_empty":23}
[16]
[]
[]
[]
["SERVIÇO: ","EXECUÇÃO DAS OBRAS E SERVIÇOS RELATIVOS À RECUPERAÇÃO E ENRIQUECIMENTO DE ÁREAS DEGRADADAS DA ETAPA 1 DO PROJETO DE IRRIGAÇÃO SALITRE, EM JUAZEIRO, ESTADO DA BAHIA."]
["LOCAL: ","6ª Superintendência Regional"]
["MUNICÍPIOS:","Juazeiro - BA"]
["CP 015","CÓDIGO:\n"," Conc.estr.fck=20 MPa-contr.raz.uso ger.conf.e lanç",null,"Produção da Equipe: ",null,2.5,"UNIDADE:\n"]
[null,"2 S 03 326 00",{"$nulls":5},"m³"]
["A - EQUIPAMENTO"]
["CÓDIGO","DESCRIÇÃO","QUANT.","UTILIZAÇÃO",null,"CUSTO OPERATIVO",null,"CUSTO\nHORÁRIO"]
[null,null,null,"Operativa","Improdutiva","Operativo","Improdutivo"]
["E302","Betoneira - 400 l (4 kW)",1,1,0,13.08,11.04,{"$f":"F530*D530*C530+G530*E530*C530","v":13.08}]
["E304","Transportador Manual - carrinho de mão 80 l",3,0.69,0.31,0.14000000000000001,0,0.2898]
["E306","Vibrador de Concreto - de imersão (2 kW)",2,1,0,12.24,11.04,24.48]
["E402","Caminhão Carroceria - de madeira 15 t (210 kW)",0.06,1,0,123.74,12.23,7.4243999999999994]
["E404","Caminhão Basculante - 10 m3 - 15 t (210 kW)",0.02,1,0,128.05000000000001,12.23,2.5610000000000004]
["E509","Grupo Gerador - 32,0 KVA (29 kW)",1,1,0,28.82,11.04,28.82]
["Custo Horário dos equipamentos",{"$nulls":6},{"$f":"SUM(H530:H535)","v":76.655200000000008}]
["B - MÃO-DE-OBRA SUPLEMENTAR"]
["CÓDIGO","DESCRIÇÃO",null,null,null,"QUANT.","SALÁRIO - HORA","CUSTO\nHORÁRIO"]
[]
["T701","Servente",null,null,null,14,6.75,{"$f":"F540*G540","v":94.5}]
[" T604","Pedreiro",null,null,null,1,11.04,{"$f":"F541*G541","v":11.04}]
["Custo Horário da Mão-de-Obra",{"$nulls":6},{"$f":"SUM(H540:H541)","v":105.53999999999999}]
["Adc.M.O. - Ferramentas: ",{"$nulls":5},20.51,{"$f":"H542*G543%","v":21.646253999999999}]
["Custo Horário de Execução",{"$nulls":6},{"$f":"SUM(H542:H543)+H536","v":203.841454}]
["Custo Unitário de Execução",{"$nulls":6},{"$f":"(H544)/G525","v":81.536581600000005}]
["17"]
["C - MATERIAL"]
["CÓDIGO","DESCRIÇÃO",null,null,null,"QUANT.","PREÇO UNITÁRIO","CUSTO\nHORÁRIO"]
[]
["M202","Cimento portland CP II-32",null,null,null,310,0.46,{"$f":"F550*G550","v":142.6}]
["Custo total do material",{"$nulls":6},{"$f":"SUM(H550:H550)","v":142.6}]
["D - ATIVIDADES AUXILIARES"]
["CÓDIGO","DESCRIÇÃO","QUANT.","UNIDADE","PREÇO UNITÁRIO",null,null,"CUSTO\nHORÁRIO"]
[]
["1 A 00 716 00","Areia comercial",0.9,"m³",54.83,null,null,{"$f":"C555*E555","v":49.347000000000001}]
["Cotação 005","Brita 1 (19 mm)",0.8,"m³",81.67,null,null,{"$f":"C556*E556","v":65.335999999999999}]
["1 A 00 001 91","Transporte comercial c/ basc. 10m³ rod. não pav.",{"$f":"1.4*30*C556","v":33.6},"txkm",0.51,null,null,{"$f":"C557*E557","v":17.136000000000003}]
["Custo total das atividades",{"$nulls":6},{"$f":"SUM(H555:H557)","v":131.81899999999999}]
["Custo Unitário Direto Total sem BDI",{"$nulls":6},{"$f":"H545+H551+H558","v":355.95558159999996}]
{"$rows_empty":18}
[18]
[]
[]
[]
[]
["SERVIÇO: ","EXECUÇÃO DAS OBRAS E SERVIÇOS RELATIVOS À RECUPERAÇÃO E ENRIQUECIMENTO DE ÁREAS DEGRADADAS DA ETAPA 1 DO PROJETO DE IRRIGAÇÃO SALITRE, EM JUAZEIRO, ESTADO DA BAHIA."]
["LOCAL: ","6ª Superintendência Regional"]
["MUNICÍPIOS:","Juazeiro - BA"]
[]
[null,"ATUALIZAÇÃO DE PREÇO SINAPI (BRITA 1)",null,null,null,"Data Base SINAPI/BA: Agosto 2014  "]
[{"$nulls":5},"Data Base SICRO/BA: Maio 2014"]
[]
["Código","Base","Insumo/Serv.","Descrição","Unidade","Quantidade","Preço Unitário","Preço Total"]
["CP 016","73406 - CONCRETO FCK=15MPA (1:2,5:3) , INCLUIDO PREPARO MECANICO, LANCAMENTO E ADENSAMENTO.\n",null,null,"m³"]
[]
[" 88309","SINAPI","S","PEDREIRO COM ENCARGOS COMPLEMENTARES","H",4,16.05,{"$f":"+ROUND(F593*G593,2)","v":64.2}]
["88316","SINAPI","S","SERVENTE COM ENCARGOS COMPLEMENTARES ","H",9,11.52,103.68]
[" 370","SINAPI","I","AREIA MEDIA - POSTO JAZIDA / FORNECEDOR (SEM FRETE)","M³",0.7,56.42,39.49]
["1379","SINAPI","I","CIMENTO PORTLAND COMPOSTO CP II-32","KG",325,0.54,175.5]
[" 4221","SINAPI","I","OLEO DIESEL COMBUSTIVEL COMUM","L",0.96479999999999999,2.46,2.37]
["4222","SINAPI","I","GASOLINA COMUM","L",6.88E-2,2.85,0.2]
["CT 005","COTAÇÃO 005","I","Brita 1 (19 mm)","M³",0.76600000000000001,81.67,62.56]
["72839","SINAPI","S","TRANSPORTE COMERCIAL COM CAMINHAO BASCULANTE 6 M3, RODOVIA EM LEITO NATURAL","TXKM",{"$f":"1.4*30*F599","v":32.171999999999997},0.69,{"$f":"+ROUND(F600*G600,2)","v":22.2}]
["10537","SINAPI","I","BETONEIRA 320 LITROS, SEM CARREGADOR, MOTOR A DIESEL DE 5,5 HP","UN ",1.916E-4,7386.06,1.42]
["11652","SINAPI","I","VIBRADOR DE IMERSAO, DIAMETRO DE 25 MM, COM MOTOR A GASOLINA DE 3,5 HP","UN ",1.98E-5,1775,0.04]
[]
[null,null,null,"Total da Composição sem BDI",null,null,null,{"$f":"ROUND(SUM(H593:H602),2)","v":471.66}]
[]
[]
[19]
[]
[]
[]
[]
["SERVIÇO: ","EXECUÇÃO DAS OBRAS E SERVIÇOS RELATIVOS À RECUPERAÇÃO E ENRIQUECIMENTO DE ÁREAS DEGRADADAS DA ETAPA 1 DO PROJETO DE IRRIGAÇÃO SALITRE, EM JUAZEIRO, ESTADO DA BAHIA."]
["LOCAL: ","6ª Superintendência Regional"]
["MUNICÍPIOS:","Juazeiro - BA"]
[null,"ATUALIZAÇÃO DE PREÇO SINAPI (BRITA 1)",null,null,null,"Data Base SINAPI/BA: Agosto 2014  "]
[{"$nulls":5},"Data Base SICRO/BA: Maio 2014"]
["Código","Base"]
[null,null,"Insumo/Serv.","Descrição","Unidade","Quantidade","Preço Unitário","Preço Total"]
["CP 017","73346 - CONCRETO ARMADO DOSADO 15 MPA INCL MAT P/ 1 M3 PREPARO CONF \nCOMP 5845 COLOC CONF COMP 7090 14 M2 DE AREA MOLDADA FORMAS \nE ESCORAMENTO CONF COMPS 5306 E 5708 60 KG DE ACO CA-50 INC \nMAO DE OBRA P/CORTE DOBRAGEM MONTAGEM E\n",null,null,"m³"]
["CP 019 (6045)","SINAPI E COMPOSIÇÃO","S","CONCRETO FCK=15MPA, PREPARO COM BETONEIRA, SEM LANCAMENTO - BRITA 1 A PREÇO LOCAL","M³",1,{"$f":"H669","v":401.31},{"$f":"+ROUND(F620*G620,2)","v":401.31}]
["73294","SINAPI","S","BETONEIRA MOTOR GAS P/320L MIST SECA (CP) CARREG MEC E TAMBOR REVERSI-VEL - EXCL OPERADOR","H",0.5,6.7,{"$f":"+ROUND(F621*G621,2)","v":3.35}]
["73296","SINAPI","S","ALUGUEL ELEVADOR EQUIPADO P/TRANSP CONCR A 10M ALT-CP-S/OPERADOR COM GUINCHO DE 10CV 16M TORRE DESMONTAVEL CACAMBA AUTOMATICA DE 550L FUNILP/DESCARGA E SILO DE ESPERA DE 1000L","H",0.27500000000000002,7.74,2.13]
["73298","SINAPI","S","VIBRADOR DE IMERSAO MOTOR ELETR 2CV (CP) TUBO DE 48X48 C/MANGOTE DE 5M COMP -EXCL OPERADOR","H",0.4,1.1399999999999999,0.46]
[]
["20"]
["73299","SINAPI","S","VIBRADOR DE IMERSAO MOTOR ELETR 2CV (CI) TUBO 48X480MM C/MANGOTE DE 5M COMP - EXCL OPERADOR","H",0.6,0.75,0.45]
["73300","SINAPI","S","ALUGUEL ELEVADOR EQUIPADO P/TRANSP CONCR A 10M ALT-CI-S/OPERADOR COM GUINCHO DE 10CV 16M TORRE DESMONTAVEL CACAMBA AUTOMATICA DE 550L FUNILP/DESCARGA E SILO ESPERA DE 1000L","H",0.22500000000000001,4.3099999999999996,0.97]
["73301","SINAPI","S","ESCORAMENTO FORMAS ATE H = 3,30M, COM MADEIRA DE 3A QUALIDADE, NÃO APARELHADA, APROVEITAMENTO TABUAS 3X E PRUMOS 4X.","m³",25.2,9.81,247.21]
["74007/002","SINAPI","S","FORMA TABUAS MADEIRA 3A P/ PECAS CONCRETO ARM, REAPR 2X, INCL MONTAGEM E DESMONTAGEM.","M²",14,27.26,381.64]
["88245","SINAPI","S","ARMADOR COM ENCARGOS COMPLEMENTARES","H",6.15,15.87,97.6]
["88262","SINAPI","S","CARPINTEIRO DE FORMAS COM ENCARGOS COMPLEMENTARES","H",0.5,15.87,7.94]
["88297","SINAPI","S","OPERADOR DE MÁQUINAS E EQUIPAMENTOS COM ENCARGOS COMPLEMENTARES","H",0.5,17.399999999999999,8.6999999999999993]
["88309","SINAPI","S","PEDREIRO COM ENCARGOS COMPLEMENTARES","H",4,15.87,63.48]
["88316","SINAPI","S","SERVENTE COM ENCARGOS COMPLEMENTARES","H",6.15,11.25,69.19]
["27","SINAPI","I","ACO CA-50, 16,0 MM, VERGALHAO","KG",5,3.49,17.45]
["29","SINAPI","I","ACO CA-50, 20,0 MM, VERGALHAO","KG",10,3.39,33.9]
["31","SINAPI","I","ACO CA-50, 12,5 MM, VERGALHAO","KG",12,3.49,{"$f":"+ROUND(F637*G637,2)","v":41.88}]
["32","SINAPI","I","ACO CA-50, 6,3 MM, VERGALHAO","KG",10,3.77,{"$f":"+ROUND(F638*G638,2)","v":37.700000000000003}]
["33","SINAPI","I","ACO CA-50, 8,0 MM, VERGALHAO","KG",12,3.93,{"$f":"+ROUND(F639*G639,2)","v":47.16}]
["34","SINAPI","I","ACO CA-50, 10,0 MM, VERGALHAO","KG",12,3.65,{"$f":"+ROUND(F640*G640,2)","v":43.8}]
["337","SINAPI","I","ARAME RECOZIDO 18 BWG, 1,25 MM (0,01 KG/M)","KG",1.8,8.9,{"$f":"+ROUND(F641*G641,2)","v":16.02}]
[]
[null,null,null,"Total da Composição sem BDI",null,null,null,{"$f":"SUM(H620:H641)","v":1522.3400000000004}]
[]
[]
[21]
[]
[]
[]
[]
["SERVIÇO: ","EXECUÇÃO DAS OBRAS E SERVIÇOS RELATIVOS À RECUPERAÇÃO E ENRIQUECIMENTO DE ÁREAS DEGRADADAS DA ETAPA 1 DO PROJETO DE IRRIGAÇÃO SALITRE, EM JUAZEIRO, ESTADO DA BAHIA."]
["LOCAL: ","6ª Superintendência Regional"]
["MUNICÍPIOS:","Juazeiro - BA"]
[]
[null,"ATUALIZAÇÃO DE PREÇO SINAPI (BRITA 1)",null,null,null,"Data Base SINAPI/BA: Agosto 2014  "]
[{"$nulls":5},"Data Base SICRO/BA: Maio 2014"]
["Código","Base"]
[null,null,"Insumo/Serv.","Descrição","Unidade","Quantidade","Preço Unitário","Preço Total"]
["CP 018","6045 - CONCRETO FCK=15MPA, PREPARO COM BETONEIRA, SEM LANCAMENTO\n",null,null,"m³"]
[]
["88316","SINAPI","I","SERVENTE COM ENCARGOS COMPLEMENTARES ","H",9,11.25,{"$f":"+ROUND(F661*G661,2)","v":101.25}]
["367","SINAPI","I","AREIA GROSSA - POSTO JAZIDA / FORNECEDOR (SEM FRETE)","M³",0.91259999999999997,56.42,51.49]
["1379","SINAPI","I","CIMENTO PORTLAND COMPOSTO CP II-32","KG",293,0.53,155.29]
["CT 005","COTAÇÃO","I","Brita 1 (19 mm)","M³",{"$f":"0.627+0.209","v":0.83599999999999997},81.67,68.28]
["72839","SINAPI","S","TRANSPORTE COMERCIAL COM CAMINHAO BASCULANTE 6 M3, RODOVIA EM LEITO NATURAL","TXKM",{"$f":"1.4*30*F664","v":35.112000000000002},0.69,24.23]
[" 10532","SINAPI","I","BETONEIRA 320 LITROS, SEM CARREGADOR, MOTOR A DIESEL DE 5,5 HP","H",0.71399999999999997,1.08,0.77]
[]
[]
[null,null,null,"Total da Composição sem BDI",null,null,null,{"$f":"ROUND(SUM(H661:H666),2)","v":401.31}]
[]
[]
[]
[]
[]
[]
[21]
[]
[]
[]
[]
["SERVIÇO: ","EXECUÇÃO DAS OBRAS E SERVIÇOS RELATIVOS À RECUPERAÇÃO E ENRIQUECIMENTO DE ÁREAS DEGRADADAS DA ETAPA 1 DO PROJETO DE IRRIGAÇÃO SALITRE, EM JUAZEIRO, ESTADO DA BAHIA."]
["LOCAL: ","6ª Superintendência Regional"]
["MUNICÍPIOS:","Juazeiro - BA"]
[]
[null,"ATUALIZAÇÃO DE PREÇO SINAPI (BRITA 1)",null,null,null,"Data Base SINAPI/BA: Agosto 2014  "]
[{"$nulls":5},"Data Base SICRO/BA: Maio 2014"]
["Código","Base"]
[null,null,"Insumo/Serv.","Descrição","Unidade","Quantidade","Preço Unitário","Preço Total"]
["CP 019","5652 - CONCRETO NAO ESTRUTURAL, CONSUMO 150KG/M3, PREPARO COM BETONEIRA, SEM LANCAMENTO\n",null,null,"m³"]
[]
["88316","SINAPI","I","SERVENTE COM ENCARGOS COMPLEMENTARES ","H",6,11.25,{"$f":"+ROUND(F691*G691,2)","v":67.5}]
[" 370","SINAPI","I","AREIA MEDIA - POSTO JAZIDA / FORNECEDOR (SEM FRETE)","M³",0.49,56.42,27.65]
["1379","SINAPI","I","CIMENTO PORTLAND COMPOSTO CP II-32","KG",150,0.53,79.5]
["643","SINAPI","I","BETONEIRA 320L DIESEL 5,5HP S/ CARREGADOR MECANICO","H",0.65,1.08,0.7]
["CT 005","COTAÇÃO","I","Brita 1 (19 mm)","M³",0.98,81.67,80.040000000000006]
["72839","SINAPI","S","TRANSPORTE COMERCIAL COM CAMINHAO BASCULANTE 6 M3, RODOVIA EM LEITO NATURAL","TXKM",{"$f":"1.4*30*F695","v":41.16},0.69,28.4]
[]
[null,null,null,"Total da Composição sem BDI",null,null,null,{"$f":"ROUND(SUM(H691:H695),2)","v":255.39}]
[]
[]
[]
[]
[]
[22]
[]
[]
[]
[]
["SERVIÇO: ","EXECUÇÃO DAS OBRAS E SERVIÇOS RELATIVOS À RECUPERAÇÃO E ENRIQUECIMENTO DE ÁREAS DEGRADADAS DA ETAPA 1 DO PROJETO DE IRRIGAÇÃO SALITRE, EM JUAZEIRO, ESTADO DA BAHIA."]
["LOCAL: ","6ª Superintendência Regional"]
["MUNICÍPIOS:","Juazeiro - BA"]
[null,"ATUALIZAÇÃO DE PREÇO SINAPI (BRITA 1)",null,null,null,"Data Base SINAPI/BA: Agosto 2014  "]
[{"$nulls":5},"Data Base SICRO/BA: Maio 2014"]
["CP 020","73907/003 - CONTRAPISO/LASTRO DE CONCRETO NAO-ESTRUTURAL, E=5CM, PREPARO COM BETONEIRA",null,null,"m²"]
["Código","Base","Insumo/Serv.","Descrição","Unidade","Quantidade","Preço Unitário","Preço Total"]
["CP 019 (6045)","SINAPI E COMPOSIÇÃO","S","CONCRETO NAO ESTRUTURAL, CONSUMO 150KG/M3, PREPARO COM BETONEIRA, SEM LANCAMENTO - BRITA 1 A PREÇO LOCAL","M³",0.05,{"$f":"H698","v":255.39},{"$f":"+ROUND(F716*G716,2)","v":12.77}]
["88309","SINAPI","S","PEDREIRO COM ENCARGOS COMPLEMENTARES","H",0.35,15.87,{"$f":"+ROUND(F717*G717,2)","v":5.55}]
["88316","SINAPI","S","SERVENTE COM ENCARGOS COMPLEMENTARES","H",0.7,11.25,{"$f":"+ROUND(F718*G718,2)","v":7.88}]
[]
[null,null,null,"Total da Composição sem BDI",null,null,null,{"$f":"ROUND(SUM(H716:H718),2)","v":26.2}]
{"$rows_empty":11}
[23]
[]
[]
[]
[]
["SERVIÇO: ","EXECUÇÃO DAS OBRAS E SERVIÇOS RELATIVOS À RECUPERAÇÃO E ENRIQUECIMENTO DE ÁREAS DEGRADADAS DA ETAPA 1 DO PROJETO DE IRRIGAÇÃO SALITRE, EM JUAZEIRO, ESTADO DA BAHIA."]
["LOCAL: ","6ª Superintendência Regional",{"$nulls":4},"MUNICÍPIOS:","Juazeiro - BA"]
[]
[null,"COMPOSIÇÃO ANALÍTICA DE PREÇO UNITÁRIO",null,null,null,"Data Base SINAPI/BA: Agosto 2014  "]
[{"$nulls":5},"Data Base SICRO/BA: Maio 2014"]
["CP 021","Instalação Hidráulica (Esgoto) - Galpão de Transbordo de Embalagens de Agrotóxicos",null,null,"un "]
["Código","Base","Insumo/Serv.","Descrição","Unidade","Quantidade","Preço Unitário","Preço Total"]
[]
[2696,"SINAPI","I","ENCANADOR","H",8,11.18,{"$f":"+ROUND(F745*G745,2)","v":89.44}]
[246,"SINAPI","I","AUXILIAR DE ENCANADOR","H",8,8.4,{"$f":"+ROUND(F746*G746,2)","v":67.2}]
[11745,"SINAPI","I","RALO SIFONADO PVC QUADRADO 100X100X53MM SAIDA 40MM C/GRELHA BRANCA","und",2,7.94,15.88]
[20086,"SINAPI","I","BUCHA REDUCAO PVC SOLD LONGA P/ ESG PREDIAL 50MM X 40MM","und",2,1.64,3.28]
[9835,"SINAPI","I","TUBO PVC SERIE NORMAL - ESGOTO PREDIAL DN 40MM - NBR 5688","m",10,3.04,30.4]
[9836,"SINAPI","I","TUBO PVC SERIE NORMAL - ESGOTO PREDIAL DN 100MM - NBR 5688","m",8,8.7899999999999991,70.319999999999993]
[20154,"SINAPI","I","JOELHO PVC SERIE R P/ ESG PREDIAL 90G DN 40MM","und",5,3.76,18.8]
[20157,"SINAPI","I","JOELHO PVC SERIE R P/ ESG PREDIAL 90G DN 100 MM","und",2,21.08,42.16]
[117,"SINAPI","I","ADESIVO P/ PVC BISNAGA C/ 17G","und",1,2.56,2.56]
[]
[null,null,null,"Total da Composição sem BDI",null,null,null,{"$f":"ROUND(SUM(H745:H753),2)","v":340.04}]
[]
[]
[]
[]
[]
[24]
[]
[]
[]
[]
["SERVIÇO: ","EXECUÇÃO DAS OBRAS E SERVIÇOS RELATIVOS À RECUPERAÇÃO E ENRIQUECIMENTO DE ÁREAS DEGRADADAS DA ETAPA 1 DO PROJETO DE IRRIGAÇÃO SALITRE, EM JUAZEIRO, ESTADO DA BAHIA."]
["LOCAL: ","6ª Superintendência Regional",{"$nulls":4},"MUNICÍPIOS:","Juazeiro - BA"]
[]
[null,"COMPOSIÇÃO ANALÍTICA DE PREÇO UNITÁRIO",null,null,null,"Data Base SINAPI/BA: Agosto 2014  "]
[{"$nulls":5},"Data Base SICRO/BA: Maio 2014"]
["CP 022","Instalação Hidráulica (Água) - Galpão de Transbordo de Embalagens de Agrotóxicos ",null,null,"un "]
["Código","Base","Insumo/Serv.","Descrição","Unidade","Quantidade","Preço Unitário","Preço Total"]
[]
[2696,"SINAPI","I","ENCANADOR","H",8,11.18,{"$f":"+ROUND(F774*G774,2)","v":89.44}]
[246,"SINAPI","I","AUXILIAR DE ENCANADOR","H",8,8.4,67.2]
[7139,"SINAPI","I","TE PVC SOLD 90G P/ AGUA FRIA PREDIAL 25MM","und",2,0.92,1.84]
[3529,"SINAPI","I","JOELHO PVC SOLD 90G P/ AGUA FRIA PREDIAL 25 MM","und",3,0.49,1.47]
[9868,"SINAPI","I","TUBO PVC SOLDAVEL EB-892 P/AGUA FRIA PREDIAL DN 25MM","m",12,2.4700000000000002,29.64]
[11719,"SINAPI","I","REGISTRO PVC PRESSAO S-30 SOLDAVEL DN 25 MM","m",1,15.19,15.19]
[11822,"SINAPI","I","TORNEIRA PLASTICO 1/2\" P/ PIA","und",1,10.08,10.08]
[10425,"SINAPI","I","LAVATORIO LOUCA BRANCA SUSPENSO 29,5 X 39,0CM OU EQUIV-PADRAO POPULAR","und",1,43.35,43.35]
[10422,"SINAPI","I","VASO SANITARIO SIFONADO C/CAIXA ACOPLADA LOUCA BRANCA - PADRAO MEDIO","und",1,242.67,242.67]
[7608,"SINAPI","I","CHUVEIRO PLASTICO BRANCO SIMPLES 5'' - AGUA FRIA - PARA ACOPLAR EM HASTE 1/2'","und",1,7.62,7.62]
[]
[null,null,null,"Total da Composição sem BDI",null,null,null,{"$f":"ROUND(SUM(H774:H783),2)","v":508.5}]
[]
[]
[]
[]
[25]
[]
[]
[]
["SERVIÇO: ","EXECUÇÃO DAS OBRAS E SERVIÇOS RELATIVOS À RECUPERAÇÃO E ENRIQUECIMENTO DE ÁREAS DEGRADADAS DA ETAPA 1 DO PROJETO DE IRRIGAÇÃO SALITRE, EM JUAZEIRO, ESTADO DA BAHIA."]
["LOCAL: ","6ª Superintendência Regional",{"$nulls":4},"MUNICÍPIOS:","Juazeiro - BA"]
[null,"COMPOSIÇÃO ANALÍTICA DE PREÇO UNITÁRIO",null,null,null,"Data Base SINAPI/BA: Agosto 2014  "]
[{"$nulls":5},"Data Base SICRO/BA: Maio 2014"]
["CP 023","Instalação Elétrica - Galpão de Transbordo de Embalagens de Agrotóxicos",null,null,"un "]
["Código","Base","Insumo/Serv.","Descrição","Unidade","Quantidade","Preço Unitário","Preço Total"]
[]
[1891,"SINAPI","I","Luva de encaixe para eletroduto PVC Ø 3/4\"","und",15,1.24,{"$f":"+ROUND(F801*G801,2)","v":18.600000000000001}]
[2674,"SINAPI","I","Eletroduto PVC rígido roscável Ø 3/4\"","m",83,2.2400000000000002,185.92]
[11950,"SINAPI","I","Bucha de nylon S-6 com parafuso fenda galvanizado cabeça panela 4,2x32mm autoatarrachante","und",55,0.24,13.2]
[400,"SINAPI","I","Braçadeira galvanizada tipo cunha Ø 3/4\"","und",55,0.56000000000000005,30.8]
[2593,"SINAPI","I","Condulete de alumínio, com tampa, tipo L, diâmetro Ø 3/4\"","und",12,7.01,84.12]
[2565,"SINAPI","I","Condulete de alumínio, com tampa, tipo E, diâmetro Ø 3/4\"","und",6,6.5,39]
[2559,"SINAPI","I","Condulete de alumínio, com tampa, tipo C, diâmetro Ø 3/4\"","und",5,6.96,34.799999999999997]
[2574,"SINAPI","I","Condulete de alumínio, com tampa, tipo T, diâmetro Ø 3/4\"","und",5,7.5,37.5]
[2580,"SINAPI","I","Condulete de alumínio, com tampa, tipo X, diâmetro Ø 3/4\"","und",2,7.94,15.88]
[12128,"SINAPI","I","Interruptor simples de sobrepor 10A/250V, 1 tecla","und",4,3.5,14]
[12129,"SINAPI","I","Interruptor simples de sobrepor 10A/250V, 2 teclas","und",2,6.27,12.54]
[12147,"SINAPI","I","Tomada de sobrepor 2P+T 10A/250V","und",4,7.93,31.72]
[]
[]
[]
[]
[26]
[7549,"SINAPI","I","Espelho/Placa PVC - 4x2\"","und",10,1.54,15.4]
[13391,"SINAPI","I","Quadro de distribuição de energia de embutir, em chapa metálica, para 06 disjuntores termomagnéticos, com barramento monofásico e neutro","und",1,119.47,119.47]
[20008,"SINAPI","I","Disjuntor monofásico 10A, 2KA (220V)","und",1,9.7899999999999991,9.7899999999999991]
[20009,"SINAPI","I","Disjuntor monofásico 16A, 2KA (220V)","und",1,9.7899999999999991,9.7899999999999991]
[20010,"SINAPI","I","Disjuntor monofásico 20A, 2KA (220V)","und",1,9.84,9.84]
[1022,"SINAPI","I","Cabo de cobre isolamento anti-chama 0,6/1KV 2,5mm2","m",280,1.57,439.6]
[12266,"SINAPI","I","Luminária de sobrepor tipo Spot","und",5,8.92,44.6]
[12227,"SINAPI","I","Luminária de sobrepor tipo Arandela","und",5,71.430000000000007,357.15]
[3753,"SINAPI","I","Lâmpada fluorescente compacta 18W","und",10,3.88,38.799999999999997]
[2436,"SINAPI","I","Eletricista","h/h",24,11.18,268.32]
[247,"SINAPI","I","Ajudante de Eletricista","h/h",24,6.96,167.04]
[]
[null,null,null,"Total da Composição sem BDI",null,null,null,{"$f":"ROUND(SUM(H801:H828),2)","v":1997.88}]
{"$rows_empty":16}
[27]
[]
[]
["SERVIÇO: ","EXECUÇÃO DAS OBRAS E SERVIÇOS RELATIVOS À RECUPERAÇÃO E ENRIQUECIMENTO DE ÁREAS DEGRADADAS DA ETAPA 1 DO PROJETO DE IRRIGAÇÃO SALITRE, EM JUAZEIRO, ESTADO DA BAHIA.",null,null,null,"MUNICÍPIOS:",null,"Juazeiro - BA"]
["LOCAL: ","6ª Superintendência Regional",null,null,null,"Data Base SINAPI/BA: Agosto 2014  "]
[null,"COMPOSIÇÃO ANALÍTICA DE PREÇO UNITÁRIO",null,null,null,"Data Base SICRO/BA: Maio 2014"]
["CP 024","Ramal Elétrico Aéreo - Galpão de Transbordo de Embalagens de Agrotóxicos",null,null,"un "]
["Código","Base","Insumo/Serv.","Descrição","Unidade","Quantidade","Preço Unitário","Preço Total"]
[]
[12366,"SINAPI","I","Poste de concreto DT 10/150","UNID",5,482.48,{"$f":"+ROUND(F856*G856,2)","v":2412.4}]
[34603,"SINAPI","I","Cabo multiplexado Biplex 2x16mm2","M",320,9.15,2928]
[3379,"SINAPI","I","Haste de aterramento 16x2400mm","UNID",2,26.84,53.68]
[1595,"SINAPI","I","Conector de aterramento BR 50/H tipo U","UNID",2,13.47,26.94]
[857,"SINAPI","I","Cabo de cobre nu 16 mm2","M",20,6.38,127.6]
[927,"ORSE","I","Armação sec. de 1 estribo galv. Pesada","UNID",6,28.23,169.38]
[3398,"SINAPI","I","Isolador roldana de porcelana","UNID",6,4.3099999999999996,25.86]
[2684,"SINAPI","I","Eletroduto pvc roscavel 1 1/4\"  ","M",6,5.05,30.3]
[852,"SINAPI","I","Arruela de aluminio 1 1/4\"","UNID",4,1.37,5.48]
[852,"SINAPI","I","Bucha de aluminio 1 1/4\"","UNID",4,1.37,5.48]
[1874,"SINAPI","I","Curva eletroduto pvc 90º roscavel 1 1/4\"","UNID",3,4.55,13.65]
[1902,"SINAPI","I","Luva eletroduto pvc  1 1/4\"","UNID",4,2.65,10.6]
[3278,"SINAPI","I","Caixa de inspeçao aterramento em pvc","UNID",2,57.24,114.48]
[431,"SINAPI","I","Parafuso cabeça quadrada 16x200","UNID",5,4.76,23.8]
[379,"SINAPI","I","Arruela quadrada F 18","UNID",5,1.46,7.3]
[20011,"SINAPI","I","Disjuntor Monofásico 30A","UNID",1,10.63,10.63]
[404,"SINAPI","I","Fita auto-fusao 20m","M",20,1.72,34.4]
[53846,"SINAPI","I","Guindaste munck  montado em caminhão","H",12,59.43,713.16]
["79517/001","SINAPI","I","Escav. Manual","M3",1,23.04,23.04]
[79483,"SINAPI","I","Aterro apiloado","M3",1,17.28,17.28]
[3357,"SINAPI","I","Deslocamento Caminhão ","H",10,38.97,389.7]
[2436,"SINAPI","I","Eletricista","h/h",40,12.92,516.79999999999995]
[247,"SINAPI","I","Ajudante de Eletricista","h/h",80,8.0399999999999991,643.20000000000005]
[null,null,null,"Total da Composição sem BDI",null,null,null,{"$f":"ROUND(SUM(H856:H878),2)","v":8303.16}]
[28]
[]
[]
[]
["SERVIÇO: ","EXECUÇÃO DAS OBRAS E SERVIÇOS RELATIVOS À RECUPERAÇÃO E ENRIQUECIMENTO DE ÁREAS DEGRADADAS DA ETAPA 1 DO PROJETO DE IRRIGAÇÃO SALITRE, EM JUAZEIRO, ESTADO DA BAHIA."]
["LOCAL: ","6ª Superintendência Regional"]
["MUNICÍPIOS:","Juazeiro - BA"]
[]
[null,"COMPOSIÇÃO ANALÍTICA DE PREÇO UNITÁRIO",null,null,null,"Data Base SINAPI/BA: Agosto 2014  "]
[{"$nulls":5},"Data Base SICRO/BA: Maio 2014"]
["Código","Base"]
[null,null,"Insumo/Serv.","Descrição","Unidade","Quantidade","Preço Unitário","Preço Total"]
["CP025",null,null,"Condução e monitoramento do processo de recuperação das áreas degradadas","un "]
["2706","Sinapi","I","Engenheiro de Meio Ambiente responsável pela condução e monitoramento do processo de recuperação das áreas degradadas","h     ",{"$f":"5*6*1","v":30},56.76,{"$f":"+ROUND(F893*G893,2)","v":1702.8}]
["Tabela Consultiva Jan/ 2014","Codevasf","I","Veículo Leve Tipo Hatch 1.0 Flex (72 CV), sem motorista, para apoio à condução e monitoramento do processo de recuperação das áreas degradadas","km",{"$f":"30*50/8","v":187.5},0.71,{"$f":"+ROUND(F894*G894,2)","v":133.13}]
[]
[null,null,null,"Total da Composição sem BDI",null,null,null,{"$f":"ROUND(SUM(H893:H894),2)","v":1835.93}]
{"$rows_empty":10}
[29]

{"sheet":"Composição do BDI","index":2,"n_rows":64,"n_cols":4,"rows_kept":64,"cut":false,"hidden":false,"merged":[[7,1,8,2],[7,3,8,3],[62,0,63,0],[62,2,63,2],[35,1,35,3],[37,0,37,3],[38,0,38,3],[40,0,41,0],[40,1,41,2],[40,3,41,3],[29,0,30,0],[29,2,30,2],[33,1,33,3],[34,1,34,3],[7,0,8,0],[0,1,0,3],[1,1,1,3],[2,1,2,3],[4,0,4,3],[5,0,5,3]]}
[null,"MINISTÉRIO DA INTEGRAÇÃO NACIONAL"]
[null,"COMPANHIA DE DESENVOLVIMENTO DOS VALES DO SÃO FRANCISCO E DO PARNAÍBA"]
[null,"6ª SUPERINTENDÊNCIA REGIONAL"]
[]
["DETALHAMENTO DO BDI "]
["DOS SERVIÇOS"]
[]
["ITEM","DESCRIÇÕES DOS ITENS",null,"%"]
[]
[]
[1,"ADMINISTRAÇÃO CENTRAL ( AC )",null,4.93]
["1.1","ESCRITÓRIO CENTRAL",null," "]
["1.2","VIAGENS",null," "]
["1.3","OUTROS",null," "]
[" "," ",null," "]
[2,"TRIBUTOS ( I )",null,{"$f":"SUM(D17:D20)","v":8.15}]
["2.1","ISS",null,2.5]
["2.2","PIS",null,0.65]
["2.3","Cofins",null,3]
["2.4","CPRB (Contribuição Previdenciária sobre a Receita Bruta)",null,2]
[]
[3,"TAXA DE RISCO ( R )",null,1.74]
[]
[4,"SEGURO E GARANTIAS (S + G)",null,0.75]
[]
[5,"DESPESAS FINANCEIRAS ( F )",null,1.17]
[]
[6,"LUCRO ( L )",null,6.86]
[]
["BDI =","  (1+AC+R+S+G)*(1+DF)*(1+L)","-1             ====================>",{"$f":"ROUND((((1+(D11+D22+D24)/100)*(1+(D26/100))*(1+(D28/100)))/((1-(D16/100)))-1),4)","v":0.26440000000000002}]
[null,"                    (1-I)"]
[]
[]
[null,"MINISTÉRIO DA INTEGRAÇÃO NACIONAL"]
[null,"COMPANHIA DE DESENVOLVIMENTO DOS VALES DO SÃO FRANCISCO E DO PARNAÍBA"]
[null,"6ª SUPERINTENDÊNCIA REGIONAL"]
[]
["DETALHAMENTO DO BDI "]
["DOS MATERIAIS"]
[]
["ITEM","DESCRIÇÕES DOS ITENS",null,"%"]
[]
[]
[1,"ADMINISTRAÇÃO CENTRAL ( AC )",null,3]
["1.1","ESCRITÓRIO CENTRAL",null," "]
["1.2","VIAGENS",null," "]
["1.3","OUTROS",null," "]
[" "," ",null," "]
[2,"TRIBUTOS ( I )",null,{"$f":"SUM(D50:D53)","v":5.65}]
["2.1","ISS",null,0]
["2.2","PIS",null,0.65]
["2.3","Cofins",null,3]
["2.4","CPRB (Contribuição Previdenciária sobre a Receita Bruta)",null,2]
[]
[3,"TAXA DE RISCO ( R )",null,0.85]
[]
[4,"SEGURO E GARANTIAS (S + G)",null,0.48]
[]
[5,"DESPESAS FINANCEIRAS ( F )",null,0.85]
[]
[6,"LUCRO ( L )",null,4.74]
[]
["BDI =","  (1+AC+R+S+G)*(1+DF)*(1+L)","-1             ====================>",{"$f":"ROUND((((1+(D44+D55+D57)/100)*(1+(D59/100))*(1+(D61/100)))/((1-(D49/100)))-1),4)","v":0.16800000000000001}]
[null,"                    (1-I)"]

{"sheet":"Cronograma","index":3,"n_rows":110,"n_cols":22,"rows_kept":110,"cut":false,"hidden":false,"merged":[[1,1,2,1],[57,0,58,0],[57,1,58,1],[1,4,1,21],[0,0,0,21],[56,0,56,21],[57,4,57,21],[1,0,2,0],[106,0,108,1],[109,0,110,1],[109,2,110,3],[49,0,51,1],[51,2,51,3]]}
["CRONOGRAMA PRAD/PREV P. I. SALITRE - FÍSICO"]
["IT","Descrição","Valor total","Duração","Período"]
[null,null,"R$","Meses","Mês 1","Mês 2","Mês 3","Mês 4","Mês 5","Mês 6","Mês 7","Mês 8","Mês 9","Mês 10","Mês 11","Mês 12","Mês 13","Mês 14","Mês 15","Mês 16","Mês 17","Mês 18"]
[1,"Administração Local",{"$f":"ORÇAMENTO!I8","v":185601.28},14,{"$f":"E51","v":4.435607917037088E-3},{"$f":"F51","v":0.16457405351616458},0.15960158441036348,0.23586601212762076,0.21186350921015115,0.20171400846462642,7.4746030240533815E-3,1.29034737629604E-3,4.3394924273659468E-3,1.29034737629604E-3,1.29034737629604E-3,6.0062640002181899E-4,null,null,null,3.0491450510699066E-3,null,2.6103153226373112E-3]
[2,"Mobilização  de pessoal e equipamentos",{"$f":"ORÇAMENTO!I9","v":7767.21},1,{"$f":"1/$D5","v":1}]
[3,"Desmobilização  de pessoal e equipamentos",{"$f":"ORÇAMENTO!I10","v":7767.21},1,{"$nulls":17},{"$f":"1/$D6","v":1}]
[4,"Instalação do Canteiro de Obras",{"$f":"ORÇAMENTO!I11","v":10691.1},2,{"$f":"1/$D7","v":0.5},0.5]
[5,"Condução e monitoramento do processo de recuperação das áreas degradadas",{"$f":"ORÇAMENTO!I12","v":18570.8},8,null,0.125,0.125,0.125,0.125,0.125,0.125,{"$nulls":4},{"$f":"1/$D8","v":0.125},{"$nulls":5},{"$f":"1/$D8","v":0.125}]
[6,"Fornecimento de veículo 4x4, com ar condicionado para apoio à fiscalização, incl. combustível, óleo, manutenção, licenciamento e seguros",{"$f":"ORÇAMENTO!I13","v":37431.599999999999},6,null,0.16666666666666666,0.16666666666666666,0.16666666666666666,0.16666666666666666,0.16666666666666666,0.16666666666666666]
[7,"PLACAS DE OBRA EM CHAPA DE ACO GALVANIZADO ",{"$f":"ORÇAMENTO!I14","v":4030.34},1,1]
[8,"Placas de identificação de espécies e educação ambiental (Forn. e implantação placa sinaliz. semi-refletiva)",{"$f":"ORÇAMENTO!I15","v":20908.400000000001},3,{"$nulls":4},0.33333333333333331,0.33333333333333331,0.33333333333333331]
[9," DESMATAMENTO E LIMPEZA MECANIZADA DE TERRENO COM ALGAROBEIRAS ATE Ø 15CM",{"$f":"ORÇAMENTO!I16","v":153640},2,null,0.5,0.5]
[10,"Destocamento de árvores c/ diâm. 0,15 a 030m",{"$f":"ORÇAMENTO!I17","v":34839},1,null,1]
[11,"Construção de Paliçadas com resíduos de algarobeiras para prevenção e controle de processos erosivos em drenagens",{"$f":"ORÇAMENTO!I18","v":1792.8},3,null,null,0.33333333333333331,0.33333333333333331,0.33333333333333331]
[12,"Construção de dissipadores hidráulicos  para prevenção e controle de processos erosivos (ENROCAMENTO DE PEDRA ARRUMADA)",{"$f":"ORÇAMENTO!I19","v":22147.56},3,null,null,0.33333333333333331,0.33333333333333331,0.33333333333333331]
[13,"Fornecimento e construção de cerca  com onze fios de arame farpado e mourões de concreto seção quadrada a cada 7,5 m",{"$f":"ORÇAMENTO!I20","v":1469650},5,null,0.2,0.2,0.2,0.2,0.2]
[14,"DESCOMPACTAÇÃO DE SOLOS (ESCAVACAO E TRANSPORTE DE MATERIAL DE 2A CAT DMT 50M COM TRATOR SOBRE ESTEIRAS 305 HP COM LAMINA E ESCARIFICADOR)",{"$f":"ORÇAMENTO!I21","v":312312},5,null,0.2,0.2,0.2,0.2,0.2]
[15,"Gradeamento de Solos descompactados",{"$f":"ORÇAMENTO!I22","v":64680},5,null,0.2,0.2,0.2,0.2,0.2]
[16,"Abertura de trincheira em material de 2a categoria (ESCAVACAO MECANICA DE VALA EM MATERIAL DE 2A. CATEGORIA ATE 2 M DE PROFUNDIDADE COM UTILIZACAO DE ESCAVADEIRA HIDRAULICA)",{"$f":"ORÇAMENTO!I23","v":2153.38},1,null,null,1]
[17,"Reposição de Topsoil (escavação, carga, transporte mat 1a cat com DMT até 1000 m.)",{"$f":"ORÇAMENTO!I24","v":50410.8},5,null,0.2,0.2,0.2,0.2,0.2]
[18,"Transporte local em rodovia não pavimentada",{"$f":"ORÇAMENTO!I25","v":30848.400000000001},5,null,0.2,0.2,0.2,0.2,0.2]
[19,"Plantio de espécies nativas arbustivas, herbáceas e rasteiras (de acordo com as especificações de projeto)",{"$f":"ORÇAMENTO!I26","v":966068.44},3,null,null,null,0.33333333333333331,0.33333333333333331,0.33333333333333331]
[20,"Transporte de água e Irrigação de mudas nativas arbustivas, herbáceas e rasteiras com carro pipa durante 8 meses, 1 vez a cada 14 dias",{"$f":"ORÇAMENTO!I27","v":39896.32},8,null,null,null,{"$f":"1/$D23","v":0.125},0.125,0.125,0.125,0.125,0.125,0.125,0.125]
[21,"Manutenção de mudas de espécies nativas arbóreas ou arbustivas, de acordo com especificações de projeto (CAPINA E LIMPEZA MANUAL DE TERRENO)",{"$f":"ORÇAMENTO!I28","v":23569.17},2,{"$nulls":8},{"$f":"1/$D24","v":0.5},{"$nulls":6},{"$f":"1/$D24","v":0.5}]
[22,"Recomposição do Banco de Sementes nativas do solo nas áreas a serem recuperadas ou enriquecidas",{"$f":"ORÇAMENTO!I29","v":7905},3,null,null,null,{"$f":"1/$D25","v":0.33333333333333331},0.33333333333333331,0.33333333333333331]
[23,"Fornecimento e instalação de portão em aço galvanizado (PORTAO PARA VEICULOS EM BARRAS DE FERRO RETANGULAR CHATA E TELA DE ARAME GALVANIZADO, FIO 8 BWG, MALHA QUADRADA 5X5CM, INCLUSIVE CADEADO E PINTURA PVA EM PILARES DE APOIO DE CONCRETO)",{"$f":"ORÇAMENTO!I30","v":37087.08},5,null,{"$f":"1/$D26","v":0.2},{"$f":"1/$D26","v":0.2},0.2,0.2,0.2]
[24," LOCAÇÃO DE ALINHAMENTOS, UTILIZANDO EQUIPE DE TOPOGRAFIA COM PESSOAL E EQUIPAMENTOS ",{"$f":"ORÇAMENTO!I31","v":55426.8},5,null,{"$f":"1/$D27","v":0.2},{"$f":"1/$D27","v":0.2},0.2,0.2,0.2]
[25,"Enrocamento saída DPP1 Margem do rio São Francisco (ENROCAMENTO MANUAL, COM ARRUMACAO DO MATERIAL )",{"$f":"ORÇAMENTO!I32","v":9228.15},1,null,null,null,{"$f":"1/$D28","v":1}]
[26,"PAVIMENTACAO EM PARALELEPIPEDO SOBRE COLCHAO DE AREIA 10CM, REJUNTADO COM AREIA",{"$f":"ORÇAMENTO!I33","v":8372},1,{"$nulls":6},{"$f":"1/$D29","v":1}]
[27,"Espalhamento de Bota-fora 1a Cat. Depositado na margem direita do trecho final do dreno principal (ESPALHAMENTO DE MATERIAL DE 1A CATEGORIA COM TRATOR DE ESTEIRA COM 153 HP)",{"$f":"ORÇAMENTO!I34","v":17262},2,null,{"$f":"1/$D30","v":0.5},{"$f":"1/$D30","v":0.5}]
[28,"ESCAVACAO MECANICA PARA ACERTO DE TALUDES, EM MATERIAL DE 1A CATEGORIA, COM ESCAVADEIRA HIDRAULICA (Em trecho de 300 m do trecho final do dreno principal)",{"$f":"ORÇAMENTO!I35","v":4165.92},1,null,null,{"$f":"1/$D31","v":1}]
[29,"Fornecimento e plantio de vetiver em mudas",{"$f":"ORÇAMENTO!I36","v":54450},2,null,null,null,{"$f":"1/$D32","v":0.5},{"$f":"1/$D32","v":0.5}]
[30,"ESCAVACAO DE VALA EM MATERIAL 1A CATEGORIA , PROFUNDIDADE ATE 1,5 M para construção de canaletas de proteção de taludes",{"$f":"ORÇAMENTO!I37","v":383.2},1,null,null,null,{"$f":"1/$D33","v":1}]
[31,"REGULARIZACAO E COMPACTACAO MANUAL DE TERRENO COM SOQUETE para construção de canaletas de proteção de taludes",{"$f":"ORÇAMENTO!I38","v":2799.93},1,null,null,null,1]
[32,"CONCRETO FCK=15MPA (1:2,5:3) , INCLUIDO PREPARO MECANICO, LANCAMENTO E ADENSAMENTO para construção de canaletas de proteção de taludes",{"$f":"ORÇAMENTO!I39","v":26240.28},1,null,null,null,1]
[33,"DESCIDA D'ÁGUA CORTES EM DEGRAUS ARM-DCD 02 AC/BC",{"$f":"ORÇAMENTO!I40","v":3863.16},1,null,null,null,1]
[34,"DISSIPADOR DE ENERGIA - DEB 01",{"$f":"ORÇAMENTO!I41","v":1673.58},1,null,null,null,1]
[35,"ESCAVACAO, CARGA E TRANSPORTE DE MATERIAL DE 1A CATEGORIA COM TRATOR SOBRE ESTEIRAS 305 HP E CACAMBA 5M3, DMT 50 A 200M",{"$f":"ORÇAMENTO!I42","v":2018.25},2,null,null,{"$f":"1/$D38","v":0.5},0.5]
[36,"REATERRO APILOADO EM CAMADAS 0,20M, UTILIZANDO MATERIAL ARGILO-ARENOSO ADQUIRIDO EM JAZIDA, JÁ CONSIDERANDO UM ACRÉSCIMO DE 25% NO VOLUME DO MATERIAL ADQUIRIDO, NÃO CONSIDERANDO O TRANSPORTE ATÉ O REATERRO",{"$f":"ORÇAMENTO!I43","v":18547.2},1,null,null,null,1]
[37,"Transporte local em rodovia não pavimentada",{"$f":"ORÇAMENTO!I44","v":11316},2,null,null,{"$f":"1/$D40","v":0.5},0.5]
[38,"ENROCAMENTO MANUAL, COM ARRUMACAO DO MATERIAL",{"$f":"ORÇAMENTO!I45","v":8612.94},1,null,null,null,1]
[39,"REGULARIZACAO E COMPACTACAO MANUAL DE TALUDE COM SOLO-CIMENTO 6%",{"$f":"ORÇAMENTO!I46","v":10209.36},1,null,null,null,1]
[40,"FORNECIMENTO E APLICAÇÃO DE CONCRETO FCK = 20 MPA NOS TALUDES DO DRENO",{"$f":"ORÇAMENTO!I47","v":7561.18},1,null,null,null,1]
[41,"ESCAVACAO MECANICA CAMPO ABERTO EM SOLO EXCETO ROCHA ATE 2,00M PROFUNDIDADE PARA CONSTRUÇÃO DE MICROBACIAS DE RETENÇÃO EM ESTRADAS DIVERSAS",{"$f":"ORÇAMENTO!I48","v":12070},1,{"$nulls":4},{"$f":"1/$D44","v":1}]
[42,"ESPALHAMENTO E COMPACTAÇÃO DE MATERIAL DE 1A CATEGORIA COM TRATOR DE ESTEIRA COM 153 HP PARA CONSTRUÇÃO DE MICROBACIAS DE RETENÇÃO EM ESTRADAS DIVERSAS",{"$f":"ORÇAMENTO!I49","v":11645},1,{"$nulls":4},{"$f":"1/$D45","v":1}]
[43,"LIMPEZA MANUAL GERAL COM REMOCAO DE COBERTURA VEGETAL PARA IMPLANTAÇÃO DE TRILHAS ECOLÓGICAS",{"$f":"ORÇAMENTO!I50","v":21300},2,{"$nulls":4},{"$f":"1/$D46","v":0.5},{"$f":"1/$D46","v":0.5}]
[44,"LIMPEZA MECANIZADA DE TERRENO COM REMOCAO DE CAMADA VEGETAL, UTILIZANDO TRATOR DE ESTEIRAS PARA LIMPEZA DO ACEIRO DA RESERVA LEGAL",{"$f":"ORÇAMENTO!I51","v":19693.5},1,{"$nulls":5},{"$f":"1/$D47","v":1}]
[45,"CONSTRUÇÃO DO SISTEMA DE DRENAGEM PLUVIAL DA PARTE FRONTAL DA ADMINISTRAÇÃO DA ETAPA 1 DO PROJETO SALITRE",{"$f":"SUM(ORÇAMENTO!I53:I61)","v":118931.07999999999},2,null,{"$f":"1/$D48","v":0.5},{"$f":"1/$D48","v":0.5}]
[46,"CONSTRUÇÃO DE GALPÃO DE TRANSBORDO PARA EMBALAGENS DE AGROTÓXICO, MODELO ACAVASF",{"$f":"SUM(ORÇAMENTO!I63:I87)","v":114945.59},3,null,{"$f":"1/$D49","v":0.33333333333333331},{"$f":"1/$D49","v":0.33333333333333331},{"$f":"1/$D49","v":0.33333333333333331}]
["Avanço Físico/ Financeiro Estimado",null,"Total","Total","Mês 1","Mês 2","Mês 3","Mês 4","Mês 5","Mês 6","Mês 7","Mês 8","Mês 9","Mês 10","Mês 11","Mês 12","Mês 13","Mês 14","Mês 15","Mês 16","Mês 17","Mês 18"]
[null,null,{"$f":"SUM(C4:C49)","v":4050483.0099999993},{"$f":"SUM(E51:V51)","v":1},{"$f":"E107/$D$107","v":4.435607917037088E-3},{"$f":"F107/$D$107","v":0.16457405351616458},0.15960158441036348,0.23586601212762076,0.21186350921015115,0.20171400846462642,7.4746030240533815E-3,1.29034737629604E-3,4.3394924273659468E-3,1.29034737629604E-3,1.29034737629604E-3,6.0062640002181899E-4,0,0,0,3.0491450510699066E-3,0,2.6103153226373112E-3]
[null,null,"Acumulado --->",null,{"$f":"E51","v":4.435607917037088E-3},{"$f":"E52+F51","v":0.16900966143320167},{"$f":"F52+G51","v":0.32861124584356516},0.56447725797118586,0.77634076718133704,0.97805477564596344,0.98552937867001678,0.98681972604631285,0.99115921847367883,0.9924495658499749,0.99373991322627098,0.99434053962629276,0.99434053962629276,0.99434053962629276,0.99434053962629276,0.99738968467736266,0.99738968467736266,1]
[]
[]
[]
[]
["CRONOGRAMA PRAD/PREV P. I. SALITRE - FINANCEIRO"]
["IT","Descrição","Valor total","Duração","Período"]
[null,null,"R$","Meses","Mês 1","Mês 2","Mês 3","Mês 4","Mês 5","Mês 6","Mês 7","Mês 8","Mês 9","Mês 10","Mês 11","Mês 12","Mês 13","Mês 14","Mês 15","Mês 16","Mês 17","Mês 18"]
[1,"Administração Local",{"$f":"C4","v":185601.28},14,{"$f":"$C$4*E109","v":823.25450698021734},{"$f":"$C$4*F109","v":30545.154987388647},{"$f":"$C$4*G109","v":29622.258356591508},43777.033759381935,39322.138494695842,37438.378164965499,1387.2958887561783,239.49012468518669,805.41534906942672,239.49012468518669,239.49012468518669,111.47702864584163,null,null,null,565.92522438423998]
[2,"Mobilização  de pessoal e equipamentos",7767.21,1,{"$f":"$C61*E5","v":7767.21}]
[3,"Desmobilização  de pessoal e equipamentos",7767.21,1,{"$nulls":17},{"$f":"$C62*V6","v":7767.21}]
[4,"Instalação do Canteiro de Obras",10691.1,2,{"$f":"$C63*E7","v":5345.55},{"$f":"$C63*F7","v":5345.55}]
[5,"Condução e monitoramento do processo de recuperação das áreas degradadas",18570.8,8,null,{"$f":"$C64*F8","v":2321.35},2321.35,2321.35,2321.35,2321.35,2321.35,{"$nulls":4},{"$f":"$C64*P8","v":2321.35},{"$nulls":5},{"$f":"$C64*V8","v":2321.35}]
[6,"Fornecimento de veículo 4x4, com ar condicionado para apoio à fiscalização, incl. combustível, óleo, manutenção, licenciamento e seguros",{"$f":"C9","v":37431.599999999999},6,null,6238.5999999999995,6238.5999999999995,6238.5999999999995,6238.5999999999995,6238.5999999999995,6238.5999999999995]
[7,"PLACAS DE OBRA EM CHAPA DE ACO GALVANIZADO ",4030.34,1,{"$f":"$C66*E10","v":4030.34}]
[8,"Placas de identificação de espécies e educação ambiental (Forn. e implantação placa sinaliz. semi-refletiva)",20908.400000000001,3,{"$nulls":4},{"$f":"$C67*I11","v":6969.4666666666672},{"$f":"$C67*J11","v":6969.4666666666672},{"$f":"$C67*K11","v":6969.4666666666672}]
[9," DESMATAMENTO E LIMPEZA MECANIZADA DE TERRENO COM ALGAROBEIRAS ATE Ø 15CM",153640,2,null,{"$f":"$C68*F12","v":76820},{"$f":"$C68*G12","v":76820}]
[10,"Destocamento de árvores c/ diâm. 0,15 a 030m",34839,1,null,{"$f":"$C69*F13","v":34839}]
[11,"Construção de Paliçadas com resíduos de algarobeiras para prevenção e controle de processos erosivos em drenagens",1792.8,3,null,null,{"$f":"$C70*G14","v":597.59999999999991},597.59999999999991,597.59999999999991]
[12,"Construção de dissipadores hidráulicos  para prevenção e controle de processos erosivos (ENROCAMENTO DE PEDRA ARRUMADA)",22147.56,3,null,null,7382.52,7382.52,7382.52]
[13,"Fornecimento e construção de cerca  com onze fios de arame farpado e mourões de concreto seção quadrada a cada 7,5 m",1469650,5,null,{"$f":"$C72*F16","v":293930},293930,293930,293930,{"$f":"$C72*J16","v":293930}]
[14,"DESCOMPACTAÇÃO DE SOLOS (ESCAVACAO E TRANSPORTE DE MATERIAL DE 2A CAT DMT 50M COM TRATOR SOBRE ESTEIRAS 305 HP COM LAMINA E ESCARIFICADOR)",312312,5,null,{"$f":"$C73*F17","v":62462.400000000001},62462.400000000001,62462.400000000001,62462.400000000001,{"$f":"$C73*J17","v":62462.400000000001}]
[15,"Gradeamento de Solos descompactados",64680,5,null,{"$f":"$C74*F18","v":12936},12936,12936,12936,{"$f":"$C74*J18","v":12936}]
[16,"Abertura de trincheira em material de 2a categoria (ESCAVACAO MECANICA DE VALA EM MATERIAL DE 2A. CATEGORIA ATE 2 M DE PROFUNDIDADE COM UTILIZACAO DE ESCAVADEIRA HIDRAULICA)",2153.38,1,null,null,{"$f":"$C75*G19","v":2153.38}]
[17,"Reposição de Topsoil (escavação, carga, transporte mat 1a cat com DMT até 1000 m.)",50410.8,5,null,{"$f":"$C76*F20","v":10082.160000000002},{"$f":"$C76*G20","v":10082.160000000002},{"$f":"$C76*H20","v":10082.160000000002},10082.160000000002,10082.160000000002]
[18,"Transporte local em rodovia não pavimentada",30848.400000000001,5,null,{"$f":"$C77*F21","v":6169.68},{"$f":"$C77*G21","v":6169.68},6169.68,6169.68,6169.68]
[19,"Plantio de espécies nativas arbustivas, herbáceas e rasteiras (de acordo com as especificações de projeto)",966068.44,3,null,null,null,322022.8133333333,322022.8133333333,322022.8133333333]
[20,"Transporte de água e Irrigação de mudas nativas arbustivas, herbáceas e rasteiras com carro pipa durante 8 meses, 1 vez a cada 14 dias",39896.32,8,null,null,null,4987.04,4987.04,4987.04,{"$f":"$C79*K23","v":4987.04},{"$f":"$C79*L23","v":4987.04},{"$f":"$C79*M23","v":4987.04},{"$f":"$C79*N23","v":4987.04},{"$f":"$C79*O23","v":4987.04}]
[21,"Manutenção de mudas de espécies nativas arbóreas ou arbustivas, de acordo com especificações de projeto (CAPINA E LIMPEZA MANUAL DE TERRENO)",23569.17,2,{"$nulls":8},{"$f":"$C80*M24","v":11784.584999999999},{"$nulls":6},{"$f":"$C80*T24","v":11784.584999999999}]
[22,"Recomposição do Banco de Sementes nativas do solo nas áreas a serem recuperadas ou enriquecidas",7905,3,null,null,null,{"$f":"$C81*H25","v":2635},2635,2635]
[23,"Fornecimento e instalação de portão em aço galvanizado (PORTAO PARA VEICULOS EM BARRAS DE FERRO RETANGULAR CHATA E TELA DE ARAME GALVANIZADO, FIO 8 BWG, MALHA QUADRADA 5X5CM, INCLUSIVE CADEADO E PINTURA PVA EM PILARES DE APOIO DE CONCRETO)",37087.08,5,null,{"$f":"$C82*F26","v":7417.4160000000011},{"$f":"$C82*G26","v":7417.4160000000011},7417.4160000000011,7417.4160000000011,7417.4160000000011]
[24," LOCAÇÃO DE ALINHAMENTOS, UTILIZANDO EQUIPE DE TOPOGRAFIA COM PESSOAL E EQUIPAMENTOS ",55426.8,5,null,{"$f":"$C83*F27","v":11085.36},{"$f":"$C83*G27","v":11085.36},11085.36,11085.36,11085.36]
[25,"Enrocamento saída DPP1 Margem do rio São Francisco (ENROCAMENTO MANUAL, COM ARRUMACAO DO MATERIAL )",9228.15,1,null,null,null,{"$f":"$C84*H28","v":9228.15}]
[26,"PAVIMENTACAO EM PARALELEPIPEDO SOBRE COLCHAO DE AREIA 10CM, REJUNTADO COM AREIA",8372,1,{"$nulls":6},{"$f":"$C85*K29","v":8372}]
[27,"Espalhamento de Bota-fora 1a Cat. Depositado na margem direita do trecho final do dreno principal (ESPALHAMENTO DE MATERIAL DE 1A CATEGORIA COM TRATOR DE ESTEIRA COM 153 HP)",17262,2,null,{"$f":"$C86*F30","v":8631},{"$f":"$C86*G30","v":8631}]
[28,"ESCAVACAO MECANICA PARA ACERTO DE TALUDES, EM MATERIAL DE 1A CATEGORIA, COM ESCAVADEIRA HIDRAULICA (Em trecho de 300 m do trecho final do dreno principal)",4165.92,1,null,null,{"$f":"$C87*G31","v":4165.92}]
[29,"Fornecimento e plantio de vetiver em mudas",54450,2,null,null,null,{"$f":"$C88*H32","v":27225},{"$f":"$C88*I32","v":27225}]
[30,"ESCAVACAO DE VALA EM MATERIAL 1A CATEGORIA , PROFUNDIDADE ATE 1,5 M para construção de canaletas de proteção de taludes",{"$f":"C33","v":383.2},{"$f":"D33","v":1},null,null,null,{"$f":"$C89*H33","v":383.2}]
[31,"REGULARIZACAO E COMPACTACAO MANUAL DE TERRENO COM SOQUETE para construção de canaletas de proteção de taludes",{"$f":"C34","v":2799.93},1,null,null,null,2799.93]
[32,"CONCRETO FCK=15MPA (1:2,5:3) , INCLUIDO PREPARO MECANICO, LANCAMENTO E ADENSAMENTO para construção de canaletas de proteção de taludes",{"$f":"C35","v":26240.28},1,null,null,null,26240.28]
[33,"DESCIDA D'ÁGUA CORTES EM DEGRAUS ARM-DCD 02 AC/BC",{"$f":"C36","v":3863.16},1,null,null,null,3863.16]
[34,"DISSIPADOR DE ENERGIA - DEB 01",1673.58,1,null,null,null,1673.58]
[35,"ESCAVACAO, CARGA E TRANSPORTE DE MATERIAL DE 1A CATEGORIA COM TRATOR SOBRE ESTEIRAS 305 HP E CACAMBA 5M3, DMT 50 A 200M",2018.25,2,null,null,{"$f":"$C94*G38","v":1009.125},1009.125]
[36,"REATERRO APILOADO EM CAMADAS 0,20M, UTILIZANDO MATERIAL ARGILO-ARENOSO ADQUIRIDO EM JAZIDA, JÁ CONSIDERANDO UM ACRÉSCIMO DE 25% NO VOLUME DO MATERIAL ADQUIRIDO, NÃO CONSIDERANDO O TRANSPORTE ATÉ O REATERRO",18547.2,1,null,null,null,18547.2]
[37,"Transporte local em rodovia não pavimentada",11316,2,null,null,{"$f":"$C96*G40","v":5658},5658]
[38,"ENROCAMENTO MANUAL, COM ARRUMACAO DO MATERIAL",8612.94,1,null,null,null,8612.94]
[39,"REGULARIZACAO E COMPACTACAO MANUAL DE TALUDE COM SOLO-CIMENTO 6%",10209.36,1,null,null,null,10209.36]
[40,"FORNECIMENTO E APLICAÇÃO DE CONCRETO FCK = 20 MPA NOS TALUDES DO DRENO",7561.18,1,null,null,null,7561.18]
[41,"ESCAVACAO MECANICA CAMPO ABERTO EM SOLO EXCETO ROCHA ATE 2,00M PROFUNDIDADE PARA CONSTRUÇÃO DE MICROBACIAS DE RETENÇÃO EM ESTRADAS DIVERSAS",12070,1,{"$nulls":4},{"$f":"$C100*I44","v":12070}]
[42,"ESPALHAMENTO E COMPACTAÇÃO DE MATERIAL DE 1A CATEGORIA COM TRATOR DE ESTEIRA COM 153 HP PARA CONSTRUÇÃO DE MICROBACIAS DE RETENÇÃO EM ESTRADAS DIVERSAS",11645,1,{"$nulls":4},{"$f":"$C101*I45","v":11645}]
[43,"LIMPEZA MANUAL GERAL COM REMOCAO DE COBERTURA VEGETAL PARA IMPLANTAÇÃO DE TRILHAS ECOLÓGICAS",21300,2,{"$nulls":4},{"$f":"$C102*I46","v":10650},{"$f":"$C102*J46","v":10650}]
[44,"LIMPEZA MECANIZADA DE TERRENO COM REMOCAO DE CAMADA VEGETAL, UTILIZANDO TRATOR DE ESTEIRAS PARA LIMPEZA DO ACEIRO DA RESERVA LEGAL",19693.5,1,{"$nulls":5},{"$f":"$C103*J47","v":19693.5}]
[45,"CONSTRUÇÃO DO SISTEMA DE DRENAGEM PLUVIAL DA PARTE FRONTAL DA ADMINISTRAÇÃO DA ETAPA 1 DO PROJETO SALITRE",118931.07999999999,2,null,{"$f":"$C104*F48","v":59465.539999999994},{"$f":"$C104*G48","v":59465.539999999994}]
[46,"CONSTRUÇÃO DE GALPÃO DE TRANSBORDO PARA EMBALAGENS DE AGROTÓXICO, MODELO ACAVASF",{"$f":"C49","v":114945.59},3,null,{"$f":"$C105*F49","v":38315.196666666663},{"$f":"$C105*G49","v":38315.196666666663},{"$f":"$C105*H49","v":38315.196666666663}]
[null,null,null,"Total","Mês 1","Mês 2","Mês 3","Mês 4","Mês 5","Mês 6","Mês 7","Mês 8","Mês 9","Mês 10","Mês 11","Mês 12","Mês 13","Mês 14","Mês 15","Mês 16","Mês 17","Mês 18"]
["Desembolso mensal",null,"Geral",{"$f":"SUM(E107:V107)","v":3864881.73},{"$f":"SUM(E61:E105)","v":17143.099999999999},636059.25266666675,616841.24766666663,911594.24099999992,818827.40599999996,779600.78599999996,28888.456666666665,4987.04,16771.625,4987.04,4987.04,2321.35,0,0,0,11784.584999999999,0,{"$f":"SUM(V61:V105)","v":10088.56}]
[null,null,"ADM Local",{"$f":"SUM(E108:V108)","v":185601.27999999997},{"$f":"$C$60*E109","v":823.25450698021734},{"$f":"$C$60*F109","v":30545.154987388647},{"$f":"$C$60*G109","v":29622.258356591508},43777.033759381935,39322.138494695842,37438.378164965499,1387.2958887561783,239.49012468518669,805.41534906942672,239.49012468518669,239.49012468518669,111.47702864584163,0,0,0,565.92522438423998,0,484.4778650850979]
[null,null,"Percentual",{"$f":"SUM(E109:V109)","v":1},{"$f":"E107/$D$107","v":4.435607917037088E-3},{"$f":"F107/$D$107","v":0.16457405351616458},0.15960158441036348,0.23586601212762076,0.21186350921015115,0.20171400846462642,7.4746030240533815E-3,1.29034737629604E-3,4.3394924273659468E-3,1.29034737629604E-3,1.29034737629604E-3,6.0062640002181899E-4,0,0,0,3.0491450510699066E-3,0,2.6103153226373112E-3]
["Desembolso Total",null,{"$f":"SUM(D107:D108)","v":4050483.01}]

{"sheet":"Quantificação","index":4,"n_rows":26,"n_cols":33,"rows_kept":26,"cut":false,"hidden":false,"merged":[]}
[null,null,"Código","S001","S002","S003","S004","S005","S006","S007","S008","S009","S010","S011","S012","S013","S014","S015","S016","S017","S018","S019","S020","S021","S022","S023","S024","S025","S026","S027","S028","S029","S030"]
["Local","Área (ha)","Serviços","Corte, destoca e remoção de resíduos de algarobeiras em áreas severamente ou moderadamente afetadas","Corte e destoca de algarobeiras em áreas brandamente afetadas","Construção de Paliçadas para prevenção e controle de processos erosivos em drenagens","Construção de dissipadores hidráulicos  para prevenção e controle de processos erosivos em drenagens","Fornecimento e construção de cerca  com onze fios de arame farpado e mourões de concreto seção quadrada a cada 7,5 m","Descompactação de solos e arrumação em nível","Abertura de trincheira em material rochoso","Reposição de Topsoil","Plantio de espécies nativas","Transporte de água e Irrigação de mudas nativas arbustivas, herbáceas e rasteiras com carro pipa durante 8 meses, 1 vez a cada 14 dias (DMT = 1 km; 15 L por muda; )","Manutenção de mudas de especies nativas arbóreas ou arbustivas","Recomposição do Banco de Sementes","Fornecimento e instalação de Placas de identificação de espécies vegetais (25x16 cm)","Fornecimento e instalação de Placa de Obra/ divulgação (4,608 m²)","Fornecimento e instalação de portão em aço galvanizado","Fornecimento e instalação de Placas de advertência e educação ambiental (0,576 m²)"," Locação de alinhamentos, utilizando equipe de topografia com pessoal e equipamentos ","Enrocamento saída DPP1 Margem do rio São Francisco","Administração Local da Obra","Espalhamento de Bota-fora 1a Cat.","Recobrimento e Estabilização de Taludes de Dreno com Plantio de Vetiver","Mobilização e Desmobilização de Equipamentos","Descida D'água Cortes em Degraus ARM-DCD 02 AC/BC","Revestimento de Talude em Concreto","Valeta de Proteção de Taludes","Construção de Microbacias de Retenção","Implantação de Trilha Ecológica","Limpeza de Aceiro","Drenagem Pluvial Frontal ADM Projeto Salitre","Galpão de transbordo de embalagens de agrotóxicos"]
[null,null,"Unidades","ha ","ha ","m²","m³","m","ha ","m³","m³","ha ","t*km","ha ","ha ","un","un","un","un","m","m³","mês","m³","un ","un ","un ","un ","un ","un ","m","m²","un ","un "]
["J 03A",0.5,null,0,0,0,0,400,{"$f":"B4","v":0.5},0,{"$f":"10000*B4*0.2*0.5","v":500},{"$f":"B4","v":0.5},{"$f":"L4*1665*8*(30/14)*0.015","v":214.07142857142856},{"$f":"L4","v":0.5},{"$f":"L4","v":0.5},0,0,0,1,{"$f":"(N4/(N4+N5))*5528","v":5528},0,0,0,0,0,0,0,0,0,0,0,0,0]
["BF 03",7.2,null,0,0,0,0,4100,0,0,0,0,{"$f":"L5*1665*8*(30/14)*0.015","v":0},{"$f":"L5","v":0},{"$f":"L5","v":0},0,0,1,1,{"$f":"(N5/(N4+N5))*5528","v":0},0,0,0,0,0,0,0,0,0,0,0,0,0]
["J 04",6.4,null,0,0,0,0,0,0,{"$f":"(B6*10000/12)*(0.5*0.5*0.5)*(1/4)","v":166.66666666666666},0,2,856.28571428571422,2,2,0,0,0,1,0,0,0,0,0,0,0,0,0,0,0,0,0,0]
["J06",9.1999999999999993,null,0,0,0,0,1350,{"$f":"B7*0.5","v":4.5999999999999996},0,{"$f":"10000*B7*0.2*0.2","v":3680},{"$f":"0.7*B7","v":6.4399999999999995},2757.2399999999993,6.4399999999999995,6.4399999999999995,0,0,1,1,1350,0,0,0,0,0,0,0,0,0,0,0,0,0]
["J09",18,null,0,0,0,0,1500,{"$f":"B8*0.3","v":5.3999999999999995},0,0,0,0,0,0,0,0,1,1,2040,0,0,0,0,0,0,0,0,0,0,0,0,0]
["J11",17.7,null,0,0,0,0,0,0,0,0,{"$f":"0.5*B9","v":8.85},3789.0642857142857,8.85,8.85,0,1,1,1,500,0,0,0,0,0,0,0,0,0,0,0,0,0]
["J12",10.5,null,0,0,0,0,2450,{"$f":"B10*0.8","v":8.4},0,0,0,0,0,0,0,0,1,1,2450,0,0,0,0,0,0,0,0,0,0,0,0,0]
["BF13",4,null,0,0,0,0,1800,0,0,0,0,0,0,0,0,0,1,1,1200,0,0,0,0,0,0,0,0,0,0,0,0,0]
["BF 14",1.6,null,0,0,0,0,1800,0,0,0,0,0,0,0,0,0,0,1,400,0,0,0,0,0,0,0,0,0,0,0,0,0]
["J 15",4.2,null,0,0,0,0,6200,0,0,0,0,0,0,0,0,0,1,1,8800,0,0,0,0,0,0,0,0,0,0,0,0,0]
["J 16",1.9,null,0,0,0,0,1440,0,0,0,0,0,0,0,0,0,1,1,{"$f":"10500/5","v":2100},0,0,0,0,0,0,0,0,0,0,0,0,0]
["J 17",8.4,null,0,0,0,0,1440,0,0,0,{"$f":"0.7*B15","v":5.88},2517.48,5.88,5.88,0,0,1,1,{"$f":"10500/5","v":2100},0,0,0,0,0,0,0,0,0,0,0,0,0]
["BF 18",5.4,null,0,0,0,0,1440,0,0,0,0,0,0,0,0,0,1,1,{"$f":"10500/5","v":2100},0,0,0,0,0,0,0,0,0,0,0,0,0]
["J19",5.8,null,0,0,0,0,1440,0,0,0,0,0,0,0,0,0,1,1,{"$f":"10500/5","v":2100},0,0,0,0,0,0,0,0,0,0,0,0,0]
["J20",10.9,null,0,0,0,0,1440,0,0,0,0,0,0,0,0,0,0,1,{"$f":"10500/5","v":2100},0,0,0,0,0,0,0,0,0,0,0,0,0]
["APP SF",{"$f":"7.75+4.15","v":11.9},null,11,0,0,0,1600,{"$f":"B19","v":11.9},0,0,{"$f":"B19","v":11.9},5094.8999999999996,11.9,11.9,0,0,0,1,1600,{"$f":"25*0.3*6","v":45},0,{"$f":"3*7*300","v":6300},{"$f":"300*15*10","v":45000},0,1,1,1,0,0,0,0,0]
["Serrote C. Pinto",95.4,null,0,0,0,0,4500,0,0,0,0,0,0,0,0,0,1,1,4050,0,0,0,0,0,0,0,0,0,0,0,0,0]
["RL PRAD",74.7,null,22.4,50.3,0,0,0,0,0,0,22.4,9590.4,22.4,22.4,0,0,0,2,0,0,0,0,0,0,0,0,0,0,0,0,0,0]
["RL PREV",400,null,0,0,0,0,0,0,0,0,20,8562.8571428571431,20,20,0,1,0,4,0,0,0,0,0,0,0,0,0,35,0,0,0,0]
["RL (sem PRAD)",{"$f":"2033-B21","v":1958.3},null,0,{"$f":"B23/2","v":979.15},{"$f":"30*6","v":180},{"$f":"3*6*6","v":108},0,0,0,0,0,0,0,0,200,0,0,1,0,0,0,0,0,0,0,0,0,0,9000,103650,0,0]
["Geral","-",null,0,0,0,0,31700,0,0,0,1,428.14285714285711,1,0,"-","-","-",107,0,0,6,0,0,1,0,0,0,50,3000,0,1,1]
[]
["Total",{"$f":"SUM(B4:B23)-B22","v":2252},null,{"$f":"SUM(D4:D23)","v":33.4},1029.45,180,108,{"$f":"SUM(H4:H24)","v":64600},30.799999999999997,166.66666666666666,4180,{"$f":"SUM(L4:L24)","v":78.97},{"$f":"SUM(M4:M24)","v":33810.441428571423},{"$f":"SUM(N4:N24)","v":78.97},77.97,200,{"$f":"SUM(Q4:Q24)","v":2},12,{"$f":"SUM(S4:S24)","v":131},38418,45,{"$f":"SUM(V4:V24)","v":6},6300,45000,1,1,1,1,85,12000,103650,1,1]